Workbook

Sheet Marks
A1: 2020-2021 | N1: First | P1: Semester | AF1: Students Number | AH1: =COUNT(B7:B97) -> 17
A3: 0 | B3: 1 | C3: 2 | D3: 3 | E3: 4 | F3: 5 | G3: 6 | H3: 7 | I3: 8 | J3: 9 | K3: 10 | L3: 11 | M3: 12 | N3: 13 | O3: 14 | P3: 15 | Q3: 16 | R3: 17 | S3: 18 | T3: 19 | U3: 20 | V3: 21 | W3: 22 | X3: 23 | Y3: 24 | Z3: 25 | AA3: 26 | AB3: 27 | AC3: 28 | AD3: 29 | AE3: 30 | AF3: 31 | AG3: 32 | AH3: 33 | AI3: 34
F4: Arabic | R4: English | AI4: Rank
F5: قراءة | G5: تعبير شفهي | H5: إصغاء | I5: إستظهار | J5: إملاء | K5: قواعد | L5: تحليل نص | M5: تعبير كتابي | N5: خط ونسخ | O5: تربية مدنية | P5: جغرافيا | Q5: تاريخ | R5: Reading | S5: Oral Com | T5: Listening | U5: Poem | V5: Dictation | W5: Grammar | X5: Read Com | Y5: Writing | Z5: Penmanship | AA5: Maths | AB5: Biology | AC5: Chemistry | AD5: Physics | AE5: Sports | AF5: Arts | AG5: Skills | AH5: Total Marks
A6: Adm No. | B6: Roll No. | C6: Name | D6: Class | E6: Section | F6: 10 | G6: 10 | H6: 10 | I6: 10 | J6: 10 | K6: 10 | L6: 10 | M6: 10 | N6: 10 | O6: 20 | P6: 20 | Q6: 20 | R6: 10 | S6: 10 | T6: 10 | U6: 10 | V6: 10 | W6: 10 | X6: 10 | Y6: 10 | Z6: 10 | AA6: 60 | AB6: 30 | AC6: 30 | AD6: 30 | AE6: 10 | AF6: 10 | AG6: 10 | AH6: =SUM(F6:AG6) -> 420
A7: 1 | B7: 220 | C7: Omar Ahmad Zein | D7: Grade 1 | E7: A | F7: 8 | G7: 2 | H7: 3 | I7: 8 | J7: 2 | K7: 3 | L7: 4 | M7: 2 | N7: 8 | O7: 18 | P7: 15 | Q7: 18 | R7: 2 | S7: 2 | T7: 2 | U7: 4 | V7: 2 | W7: 4 | X7: 4 | Y7: 6 | Z7: 9 | AA7: 38 | AB7: 18 | AC7: 18 | AD7: 18 | AE7: 11 | AF7: 9 | AG7: 5 | AH7: 243 | AI7: =RANK(AH7,$AH$7:$AH$95,0) -> 7 | BA7: YELLOW | BB7: A
A8: 2 | B8: 221 | C8: Ahmad Mohammed Yuness | D8: Grade 2 | E8: A | F8: 2 | G8: 3 | H8: 4 | I8: 5 | J8: 6 | K8: 7 | L8: 8 | M8: 9 | N8: 10 | O8: 11 | P8: 12 | Q8: 13 | R8: 14 | S8: 15 | T8: 16 | U8: 17 | V8: 18 | W8: 19 | X8: 20 | Y8: 21 | Z8: 22 | AA8: 23 | AB8: 24 | AC8: 25 | AD8: 26 | AE8: 27 | AF8: 28 | AG8: 29 | AH8: 434 | AI8: 1 | BA8: FARMERS | BB8: B
A9: 3 | B9: 222 | C9: Zouheir hasan Wazni | D9: Grade 3 | E9: B | F9: 2 | G9: 2 | H9: 2 | I9: 5 | J9: 3 | K9: 4 | L9: 4 | M9: 2 | N9: 9 | O9: 18 | P9: 15 | Q9: 15 | R9: 2 | S9: 2 | T9: 2 | U9: 5 | V9: 2 | W9: 5 | X9: 5 | Y9: 7 | Z9: 9 | AA9: 35 | AB9: 17 | AC9: 20 | AD9: 20 | AE9: 16 | AF9: 9 | AG9: 9 | AH9: 246 | AI9: 3 | BA9: BUS-MABSOUT | BB9: C
A10: 4 | B10: 223 | C10: Sara Ali Ballot | D10: Grade 4 | E10: C | F10: 2 | G10: 2 | H10: 2 | I10: 5 | J10: 2 | K10: 4 | L10: 4 | M10: 2 | N10: 9 | O10: 15 | P10: 14 | Q10: 15 | R10: 2 | S10: 2 | T10: 2 | U10: 5 | V10: 2 | W10: 4 | X10: 4 | Y10: 2 | Z10: 8 | AA10: 36 | AB10: 19 | AC10: 15 | AD10: 19 | AE10: 18 | AF10: 7 | AG10: 9 | AH10: 230 | AI10: 14 | BA10: BLOOMERS | BB10: D
A11: 5 | B11: 224 | C11: Saad eddin Syufi | D11: Grade 5 | E11: D | F11: 2 | G11: 2 | H11: 2 | I11: 5 | J11: 2 | K11: 4 | L11: 4 | M11: 4 | N11: 9 | O11: 15 | P11: 14 | Q11: 14 | R11: 2 | S11: 4 | T11: 4 | U11: 5 | V11: 2 | W11: 4 | X11: 4 | Y11: 3 | Z11: 7 | AA11: 30 | AB11: 18 | AC11: 18 | AD11: 15 | AE11: 19 | AF11: 8 | AG11: 8 | AH11: 228 | AI11: 15 | BA11: CACTUS | BB11: E
A12: 6 | B12: 225 | C12: Ali Mohammed Safar | D12: Grade 8 | E12: E | F12: 2 | G12: 2 | H12: 3 | I12: 5 | J12: 2 | K12: 4 | L12: 4 | M12: 4 | N12: 8 | O12: 15 | P12: 18 | Q12: 16 | R12: 2 | S12: 4 | T12: 4 | U12: 5 | V12: 2 | W12: 4 | X12: 4 | Y12: 3 | Z12: 9 | AA12: 32 | AB12: 18 | AC12: 15 | AD12: 17 | AE12: 20 | AF12: 9 | AG12: 6 | AH12: 237 | AI12: 11 | BA12: EDISON | BB12: F
A13: 7 | B13: 226 | C13: Ali Naser Slim | D13: Grade 8 | E13: F | F13: 2 | G13: 2 | H13: 3 | I13: 5 | J13: 2 | K13: 4 | L13: 4 | M13: 2 | N13: 7 | O13: 14 | P13: 19 | Q13: 18 | R13: 5 | S13: 2 | T13: 2 | U13: 5 | V13: 2 | W13: 2 | X13: 2 | Y13: 5 | Z13: 8 | AA13: 38 | AB13: 19 | AC13: 17 | AD13: 19 | AE13: 8 | AF13: 9 | AG13: 8 | AH13: 233 | AI13: 13
A14: 8 | B14: 227 | C14: Mohammed Ali Saad | D14: Grade 7 | E14: C | F14: 2 | G14: 2 | H14: 2 | I14: 5 | J14: 2 | K14: 4 | L14: 4 | M14: 4 | N14: 7 | O14: 16 | P14: 20 | Q14: 19 | R14: 2 | S14: 5 | T14: 5 | U14: 5 | V14: 2 | W14: 5 | X14: 5 | Y14: 5 | Z14: 9 | AA14: 39 | AB14: 20 | AC14: 16 | AD14: 19 | AE14: 15 | AF14: 8 | AG14: 6 | AH14: 253 | AI14: 2
A15: 9 | B15: 228 | C15: Samir Ahmad Doulani | D15: Grade 6 | E15: C | F15: 2 | G15: 2 | H15: 2 | I15: 5 | J15: 2 | K15: 4 | L15: 3 | M15: 2 | N15: 5 | O15: 8 | P15: 7 | Q15: 6 | R15: 2 | S15: 2 | T15: 3 | U15: 6 | V15: 3 | W15: 3 | X15: 2 | Y15: 2 | Z15: 5 | AA15: 12 | AB15: 8 | AC15: 11 | AD15: 8 | AE15: 8 | AF15: 5 | AG15: 5 | AH15: 133 | AI15: 17
A16: 10 | B16: 229 | C16: Samira ali naser | D16: Grade 6 | E16: A | F16: 2 | G16: 2 | H16: 3 | I16: 6 | J16: 6 | K16: 3 | L16: 4 | M16: 3 | N16: 9 | O16: 19 | P16: 15 | Q16: 14 | R16: 1.5 | S16: 3 | T16: 3 | U16: 6 | V16: 2 | W16: 3 | X16: 3 | Y16: 2 | Z16: 8 | AA16: 37 | AB16: 18 | AC16: 19 | AD16: 17 | AE16: 19 | AF16: 8 | AG16: 10 | AH16: 245.5 | AI16: 4
A17: 11 | B17: 230 | C17: Sanaa Mohammad ali | D17: Grade 2 | E17: B | F17: 2 | G17: 2 | H17: 3 | I17: 7 | J17: 6 | K17: 4 | L17: 3 | M17: 3 | N17: 9 | O17: 20 | P17: 17 | Q17: 15 | R17: 2 | S17: 3 | T17: 3 | U17: 6 | V17: 2 | W17: 3 | X17: 3 | Y17: 2 | Z17: 9 | AA17: 35 | AB17: 17 | AC17: 20 | AD17: 17 | AE17: 19 | AF17: 8 | AG17: 5 | AH17: 245 | AI17: 5
A18: 12 | B18: 231 | C18: Sawsan Amin taha | D18: Grade 1 | E18: A | F18: 2 | G18: 2 | H18: 5 | I18: 2 | J18: 2 | K18: 4 | L18: 4 | M18: 4 | N18: 8 | O18: 14 | P18: 19 | Q18: 17 | R18: 3 | S18: 5 | T18: 5 | U18: 5 | V18: 2 | W18: 3 | X18: 3 | Y18: 2 | Z18: 8 | AA18: 32 | AB18: 19 | AC18: 19 | AD18: 17 | AE18: 18 | AF18: 9 | AG18: 5 | AH18: 238 | AI18: 10
A19: 13 | B19: 232 | C19: Kasem Ali Humaydan | D19: Grade 4 | E19: B | F19: 2 | G19: 2 | H19: 3 | I19: 2 | J19: 2 | K19: 3 | L19: 4 | M19: 5 | N19: 6 | O19: 15 | P19: 19 | Q19: 19 | R19: 3 | S19: 5 | T19: 4 | U19: 5 | V19: 2 | W19: 3 | X19: 3 | Y19: 2 | Z19: 9 | AA19: 36 | AB19: 19 | AC19: 15 | AD19: 17 | AE19: 20 | AF19: 10 | AG19: 9 | AH19: 244 | AI19: 6
A20: 14 | B20: 234 | C20: Majed Yaser el Hoss | D20: Grade 8 | E20: E | F20: 2 | G20: 2 | H20: 2 | I20: 8 | J20: 2 | K20: 4 | L20: 4 | M20: 2 | N20: 5 | O20: 15 | P20: 14 | Q20: 12 | R20: 2 | S20: 2 | T20: 3 | U20: 3 | V20: 3 | W20: 3 | X20: 2 | Y20: 2 | Z20: 5 | AA20: 15 | AB20: 10 | AC20: 11 | AD20: 8 | AE20: 8 | AF20: 5 | AG20: 5 | AH20: 159 | AI20: 16
A21: 15 | B21: 235 | C21: Hasan Ali Ali | D21: Grade 3 | E21: F | F21: 2 | G21: 2 | H21: 2 | I21: 2 | J21: 2 | K21: 4 | L21: 4 | M21: 2 | N21: 9 | O21: 19 | P21: 16 | Q21: 18 | R21: 2 | S21: 2 | T21: 2 | U21: 4 | V21: 2 | W21: 2 | X21: 2 | Y21: 2 | Z21: 10 | AA21: 40 | AB21: 19 | AC21: 19 | AD21: 18 | AE21: 17 | AF21: 8 | AG21: 9 | AH21: 240 | AI21: 9
A22: 16 | B22: 236 | C22: Mahmoud Yaser Ali | D22: Grade 1 | E22: D | F22: 2 | G22: 2 | H22: 3 | I22: 5 | J22: 2 | K22: 4 | L22: 4 | M22: 2 | N22: 9 | O22: 18 | P22: 16 | Q22: 18 | R22: 2 | S22: 2 | T22: 2 | U22: 3 | V22: 2 | W22: 2 | X22: 2 | Y22: 2 | Z22: 9 | AA22: 40 | AB22: 17 | AC22: 18 | AD22: 19 | AE22: 16 | AF22: 7 | AG22: 9 | AH22: 237 | AI22: 11
A23: 17 | B23: 237 | C23: Jamal Ali Saleh | D23: Grade 1 | E23: D | F23: 2 | G23: 2 | H23: 3 | I23: 4 | J23: 3 | K23: 3 | L23: 2 | M23: 4 | N23: 9 | O23: 19 | P23: 16 | Q23: 19 | R23: 2 | S23: 2 | T23: 2 | U23: 3 | V23: 2 | W23: 3 | X23: 2 | Y23: 2 | Z23: 9 | AA23: 38 | AB23: 17 | AC23: 20 | AD23: 18 | AE23: 18 | AF23: 8 | AG23: 9 | AH23: 241 | AI23: 8
A24: 18 | AH24: 0 | AI24: 18
A25: 19 | AH25: 0 | AI25: 18
A26: 20 | AH26: 0 | AI26: 18
A27: 21 | AH27: 0 | AI27: 18
A28: 22 | AH28: 0 | AI28: 18
A29: 23 | AH29: 0 | AI29: 18
A30: 24 | AH30: 0 | AI30: 18
A31: 25 | AH31: 0 | AI31: 18
A32: 26 | AH32: 0 | AI32: 18
A33: 27 | AH33: 0 | AI33: 18
A34: 28 | AH34: 0 | AI34: 18
A35: 29 | AH35: 0 | AI35: 18
A36: 30 | AH36: 0 | AI36: 18
A37: 31 | AH37: 0 | AI37: 18
A38: 32 | AH38: =SUM(F38:AG38) -> 0 | AI38: 18
A39: 33 | AH39: 0 | AI39: =RANK(AH39,$AH$7:$AH$95,0) -> 18
A40: 34 | AH40: 0 | AI40: 18
A41: 35 | AH41: 0 | AI41: 18
A42: 36 | AH42: 0 | AI42: 18
A43: 37 | AH43: 0 | AI43: 18
A44: 38 | AH44: 0 | AI44: 18
A45: 39 | AH45: 0 | AI45: 18
A46: 40 | AH46: 0 | AI46: 18
A47: 41 | AH47: 0 | AI47: 18
A48: 42 | AH48: 0 | AI48: 18
A49: 43 | AH49: 0 | AI49: 18
A50: 44 | AH50: 0 | AI50: 18
A51: 45 | AH51: 0 | AI51: 18
A52: 46 | AH52: 0 | AI52: 18
A53: 47 | AH53: 0 | AI53: 18
A54: 48 | AH54: 0 | AI54: 18
A55: 49 | AH55: 0 | AI55: 18
A56: 50 | AH56: 0 | AI56: 18
A57: 51 | AH57: 0 | AI57: 18
A58: 52 | AH58: 0 | AI58: 18
A59: 53 | AH59: 0 | AI59: 18
A60: 54 | AH60: 0 | AI60: 18
A61: 55 | AH61: 0 | AI61: 18
A62: 56 | AH62: 0 | AI62: 18
A63: 57 | AH63: 0 | AI63: 18
A64: 58 | AH64: 0 | AI64: 18
A65: 59 | AH65: 0 | AI65: 18
A66: 60 | AH66: 0 | AI66: 18
A67: 61 | AH67: 0 | AI67: 18
A68: 62 | AH68: 0 | AI68: 18
A69: 63 | AH69: 0 | AI69: 18
A70: 64 | AH70: =SUM(F70:AG70) -> 0 | AI70: 18
A71: 65 | AH71: 0 | AI71: =RANK(AH71,$AH$7:$AH$95,0) -> 18
A72: 66 | AH72: 0 | AI72: 18
A73: 67 | AH73: 0 | AI73: 18
A74: 68 | AH74: 0 | AI74: 18
A75: 69 | AH75: 0 | AI75: 18
A76: 70 | AH76: 0 | AI76: 18
A77: 71 | AH77: 0 | AI77: 18
A78: 72 | AH78: 0 | AI78: 18
A79: 73 | AH79: 0 | AI79: 18
A80: 74 | AH80: 0 | AI80: 18
A81: 75 | AH81: 0 | AI81: 18
A82: 76 | AH82: 0 | AI82: 18
A83: 77 | AH83: 0 | AI83: 18
A84: 78 | AH84: 0 | AI84: 18
A85: 79 | AH85: 0 | AI85: 18
A86: 80 | AH86: 0 | AI86: 18
A87: 81 | AH87: 0 | AI87: 18
A88: 82 | AH88: 0 | AI88: 18
A89: 83 | AH89: 0 | AI89: 18
A90: 84 | AH90: 0 | AI90: 18
A91: 85 | AH91: 0 | AI91: 18
A92: 86 | AH92: 0 | AI92: 18
A93: 87 | AH93: 0 | AI93: 18
A94: 88 | AH94: 0 | AI94: 18
A95: 89 | AH95: 0 | AI95: 18
A96: 90 | AH96: 0 | AI96: 18
A97: 91 | AH97: 0 | AI97: 18
A98: 92 | AH98: 0 | AI98: 18
A99: 93 | AH99: 0 | AI99: 18
A100: 94 | AH100: 0 | AI100: 18
A101: 95 | AH101: 0 | AI101: 18
A102: 96 | AH102: =SUM(F102:AG102) -> 0 | AI102: 18
A103: 97 | AH103: 0 | AI103: =RANK(AH103,$AH$7:$AH$95,0) -> 18
A104: 98 | AH104: 0 | AI104: 18

Sheet Grade 1
N1: First SEMESTER | AA1: Students Number | AC1: =COUNT(B7:B97) -> 0
A3: 0 | B3: 1 | C3: 2 | D3: 3 | E3: 4 | F3: 5 | G3: 6 | H3: 7 | I3: 8 | J3: 9 | K3: 10 | L3: 11 | M3: 12 | N3: 13 | O3: 14 | P3: 15 | Q3: 16 | R3: 17 | S3: 18 | T3: 19 | U3: 20 | V3: 21 | W3: 22 | X3: 23 | Y3: 24 | Z3: 25 | AA3: 26 | AB3: 27 | AC3: 28 | AD3: 29
F4: Arabic | O4: English | AD4: Rank
F5: قراءة | G5: تعبير شفهي | H5: إصغاء | I5: إستظهار | J5: إملاء | K5: قواعد | L5: تحليل نص | M5: تعبير كتابي | N5: خط ونسخ | O5: Reading | P5: Oral Com | Q5: Listening | R5: Poem | S5: Dictation | T5: Phonics | U5: Read Com | V5: Writing | W5: Penmanship | X5: Maths | Y5: Siences | Z5: Sports | AA5: Arts | AB5: Skills | AC5: Total Marks
A6: Adm No. | B6: Roll No. | C6: Name | D6: Class | E6: Section | F6: 10 | G6: 10 | H6: 10 | I6: 10 | J6: 10 | K6: 10 | L6: 10 | M6: 10 | N6: 10 | O6: 10 | P6: 10 | Q6: 10 | R6: 10 | S6: 10 | T6: 10 | U6: 10 | V6: 10 | W6: 10 | X6: 60 | Y6: 30 | Z6: 10 | AA6: 10 | AB6: 10 | AC6: =SUM(F6:AB6) -> 300
A7: 1 | AC7: 0 | AD7: =RANK(AC7,$AC$7:$AC$150,0) -> 1 | AV7: YELLOW | AW7: A
A8: 2 | AC8: 0 | AD8: =RANK(AC8,$AC$7:$AC$150,0) -> 1 | AV8: FARMERS | AW8: B
A9: 3 | AC9: 0 | AD9: 1 | AV9: BUS-MABSOUT | AW9: C
A10: 4 | AC10: 0 | AD10: 1 | AV10: BLOOMERS | AW10: D
A11: 5 | AC11: 0 | AD11: 1 | AV11: CACTUS | AW11: E
A12: 6 | AC12: 0 | AD12: 1 | AV12: EDISON | AW12: F
A13: 7 | AC13: 0 | AD13: 1
A14: 8 | AC14: 0 | AD14: 1
A15: 9 | AC15: 0 | AD15: 1
A16: 10 | AC16: 0 | AD16: 1
A17: 11 | AC17: 0 | AD17: 1
A18: 12 | AC18: 0 | AD18: 1
A19: 13 | AC19: 0 | AD19: 1
A20: 14 | AC20: 0 | AD20: 1
A21: 15 | AC21: 0 | AD21: 1
A22: 16 | AC22: 0 | AD22: 1
A23: 17 | AC23: 0 | AD23: 1
A24: 18 | AC24: 0 | AD24: 1
A25: 19 | AC25: 0 | AD25: 1
A26: 20 | AC26: 0 | AD26: 1
A27: 21 | AC27: 0 | AD27: 1
A28: 22 | AC28: 0 | AD28: 1
A29: 23 | AC29: 0 | AD29: 1
A30: 24 | AC30: 0 | AD30: 1
A31: 25 | AC31: 0 | AD31: 1
A32: 26 | AC32: 0 | AD32: 1
A33: 27 | AC33: 0 | AD33: 1
A34: 28 | AC34: 0 | AD34: 1
A35: 29 | AC35: 0 | AD35: 1
A36: 30 | AC36: 0 | AD36: 1
A37: 31 | AC37: 0 | AD37: 1
A38: 32 | AC38: =SUM(F38:AB38) -> 0 | AD38: 1
A39: 33 | AC39: 0 | AD39: 1
A40: 34 | AC40: 0 | AD40: 1
A41: 35 | AC41: 0 | AD41: 1
A42: 36 | AC42: 0 | AD42: 1
A43: 37 | AC43: 0 | AD43: 1
A44: 38 | AC44: 0 | AD44: 1
A45: 39 | AC45: 0 | AD45: 1
A46: 40 | AC46: 0 | AD46: 1
A47: 41 | AC47: 0 | AD47: 1
A48: 42 | AC48: 0 | AD48: 1
A49: 43 | AC49: 0 | AD49: 1
A50: 44 | AC50: 0 | AD50: 1
A51: 45 | AC51: 0 | AD51: 1
A52: 46 | AC52: 0 | AD52: 1
A53: 47 | AC53: 0 | AD53: 1
A54: 48 | AC54: 0 | AD54: 1
A55: 49 | AC55: 0 | AD55: 1
A56: 50 | AC56: 0 | AD56: 1
A57: 51 | AC57: 0 | AD57: 1
A58: 52 | AC58: 0 | AD58: 1
A59: 53 | AC59: 0 | AD59: 1
A60: 54 | AC60: 0 | AD60: 1
A61: 55 | AC61: 0 | AD61: 1
A62: 56 | AC62: 0 | AD62: 1
A63: 57 | AC63: 0 | AD63: 1
A64: 58 | AC64: 0 | AD64: 1
A65: 59 | AC65: 0 | AD65: 1
A66: 60 | AC66: 0 | AD66: 1
A67: 61 | AC67: 0 | AD67: 1
A68: 62 | AC68: 0 | AD68: 1
A69: 63 | AC69: 0 | AD69: 1
A70: 64 | AC70: =SUM(F70:AB70) -> 0 | AD70: 1
A71: 65 | AC71: 0 | AD71: 1
A72: 66 | AC72: 0 | AD72: =RANK(AC72,$AC$7:$AC$150,0) -> 1
A73: 67 | AC73: 0 | AD73: 1
A74: 68 | AC74: 0 | AD74: 1
A75: 69 | AC75: 0 | AD75: 1
A76: 70 | AC76: 0 | AD76: 1
A77: 71 | AC77: 0 | AD77: 1
A78: 72 | AC78: 0 | AD78: 1
A79: 73 | AC79: 0 | AD79: 1
A80: 74 | AC80: 0 | AD80: 1
A81: 75 | AC81: 0 | AD81: 1
A82: 76 | AC82: 0 | AD82: 1
A83: 77 | AC83: 0 | AD83: 1
A84: 78 | AC84: 0 | AD84: 1
A85: 79 | AC85: 0 | AD85: 1
A86: 80 | AC86: 0 | AD86: 1
A87: 81 | AC87: 0 | AD87: 1
A88: 82 | AC88: 0 | AD88: 1
A89: 83 | AC89: 0 | AD89: 1
A90: 84 | AC90: 0 | AD90: 1
A91: 85 | AC91: 0 | AD91: 1
A92: 86 | AC92: 0 | AD92: 1
A93: 87 | AC93: 0 | AD93: 1
A94: 88 | AC94: 0 | AD94: 1
A95: 89 | AC95: 0 | AD95: 1
A96: 90 | AC96: 0 | AD96: 1
A97: 91 | AC97: 0 | AD97: 1
A98: 92 | AC98: 0 | AD98: 1
A99: 93 | AC99: 0 | AD99: 1
A100: 94 | AC100: 0 | AD100: 1
A101: 95 | AC101: 0 | AD101: 1
A102: 96 | AC102: =SUM(F102:AB102) -> 0 | AD102: 1
A103: 97 | AC103: 0 | AD103: 1
A104: 98 | AC104: 0 | AD104: 1

Sheet Grade 2
N1: First SEMESTER | AA1: Students Number | AC1: =COUNT(B7:B97) -> 0
A3: 0 | B3: 1 | C3: 2 | D3: 3 | E3: 4 | F3: 5 | G3: 6 | H3: 7 | I3: 8 | J3: 9 | K3: 10 | L3: 11 | M3: 12 | N3: 13 | O3: 14 | P3: 15 | Q3: 16 | R3: 17 | S3: 18 | T3: 19 | U3: 20 | V3: 21 | W3: 22 | X3: 23 | Y3: 24 | Z3: 25 | AA3: 26 | AB3: 27 | AC3: 28 | AD3: 29
F4: Arabic | O4: English | AD4: Rank
F5: قراءة | G5: تعبير شفهي | H5: إصغاء | I5: إستظهار | J5: إملاء | K5: قواعد | L5: تحليل نص | M5: تعبير كتابي | N5: خط ونسخ | O5: Reading | P5: Oral Com | Q5: Listening | R5: Poem | S5: Dictation | T5: Phonics | U5: Read Com | V5: Writing | W5: Penmanship | X5: Maths | Y5: Siences | Z5: Sports | AA5: Arts | AB5: Skills | AC5: Total Marks
A6: Adm No. | B6: Roll No. | C6: Name | D6: Class | E6: Section | F6: 10 | G6: 10 | H6: 10 | I6: 10 | J6: 10 | K6: 10 | L6: 10 | M6: 10 | N6: 10 | O6: 10 | P6: 10 | Q6: 10 | R6: 10 | S6: 10 | T6: 10 | U6: 10 | V6: 10 | W6: 10 | X6: 60 | Y6: 30 | Z6: 10 | AA6: 10 | AB6: 10 | AC6: =SUM(F6:AB6) -> 300
A7: 1 | AC7: 0 | AD7: =RANK(AC7,$AC$7:$AC$150,0) -> 1 | AV7: YELLOW | AW7: A
A8: 2 | AC8: 0 | AD8: =RANK(AC8,$AC$7:$AC$150,0) -> 1 | AV8: FARMERS | AW8: B
A9: 3 | AC9: 0 | AD9: 1 | AV9: BUS-MABSOUT | AW9: C
A10: 4 | AC10: 0 | AD10: 1 | AV10: BLOOMERS | AW10: D
A11: 5 | AC11: 0 | AD11: 1 | AV11: CACTUS | AW11: E
A12: 6 | AC12: 0 | AD12: 1 | AV12: EDISON | AW12: F
A13: 7 | AC13: 0 | AD13: 1
A14: 8 | AC14: 0 | AD14: 1
A15: 9 | AC15: 0 | AD15: 1
A16: 10 | AC16: 0 | AD16: 1
A17: 11 | AC17: 0 | AD17: 1
A18: 12 | AC18: 0 | AD18: 1
A19: 13 | AC19: 0 | AD19: 1
A20: 14 | AC20: 0 | AD20: 1
A21: 15 | AC21: 0 | AD21: 1
A22: 16 | AC22: 0 | AD22: 1
A23: 17 | AC23: 0 | AD23: 1
A24: 18 | AC24: 0 | AD24: 1
A25: 19 | AC25: 0 | AD25: 1
A26: 20 | AC26: 0 | AD26: 1
A27: 21 | AC27: 0 | AD27: 1
A28: 22 | AC28: 0 | AD28: 1
A29: 23 | AC29: 0 | AD29: 1
A30: 24 | AC30: 0 | AD30: 1
A31: 25 | AC31: 0 | AD31: 1
A32: 26 | AC32: 0 | AD32: 1
A33: 27 | AC33: 0 | AD33: 1
A34: 28 | AC34: 0 | AD34: 1
A35: 29 | AC35: 0 | AD35: 1
A36: 30 | AC36: 0 | AD36: 1
A37: 31 | AC37: 0 | AD37: 1
A38: 32 | AC38: 0 | AD38: 1
A39: 33 | AC39: 0 | AD39: 1
A40: 34 | AC40: 0 | AD40: 1
A41: 35 | AC41: 0 | AD41: 1
A42: 36 | AC42: 0 | AD42: 1
A43: 37 | AC43: 0 | AD43: 1
A44: 38 | AC44: 0 | AD44: 1
A45: 39 | AC45: 0 | AD45: 1
A46: 40 | AC46: 0 | AD46: 1
A47: 41 | AC47: 0 | AD47: 1
A48: 42 | AC48: 0 | AD48: 1
A49: 43 | AC49: 0 | AD49: 1
A50: 44 | AC50: 0 | AD50: 1
A51: 45 | AC51: 0 | AD51: 1
A52: 46 | AC52: 0 | AD52: 1
A53: 47 | AC53: 0 | AD53: 1
A54: 48 | AC54: 0 | AD54: 1
A55: 49 | AC55: 0 | AD55: 1
A56: 50 | AC56: 0 | AD56: 1
A57: 51 | AC57: 0 | AD57: 1
A58: 52 | AC58: 0 | AD58: 1
A59: 53 | AC59: 0 | AD59: 1
A60: 54 | AC60: 0 | AD60: 1
A61: 55 | AC61: 0 | AD61: 1
A62: 56 | AC62: 0 | AD62: 1
A63: 57 | AC63: 0 | AD63: 1
A64: 58 | AC64: 0 | AD64: 1
A65: 59 | AC65: 0 | AD65: 1
A66: 60 | AC66: 0 | AD66: 1
A67: 61 | AC67: 0 | AD67: 1
A68: 62 | AC68: 0 | AD68: 1
A69: 63 | AC69: 0 | AD69: 1
A70: 64 | AC70: =SUM(F70:AB70) -> 0 | AD70: 1
A71: 65 | AC71: 0 | AD71: 1
A72: 66 | AC72: 0 | AD72: =RANK(AC72,$AC$7:$AC$150,0) -> 1
A73: 67 | AC73: 0 | AD73: 1
A74: 68 | AC74: 0 | AD74: 1
A75: 69 | AC75: 0 | AD75: 1
A76: 70 | AC76: 0 | AD76: 1
A77: 71 | AC77: 0 | AD77: 1
A78: 72 | AC78: 0 | AD78: 1
A79: 73 | AC79: 0 | AD79: 1
A80: 74 | AC80: 0 | AD80: 1
A81: 75 | AC81: 0 | AD81: 1
A82: 76 | AC82: 0 | AD82: 1
A83: 77 | AC83: 0 | AD83: 1
A84: 78 | AC84: 0 | AD84: 1
A85: 79 | AC85: 0 | AD85: 1
A86: 80 | AC86: 0 | AD86: 1
A87: 81 | AC87: 0 | AD87: 1
A88: 82 | AC88: 0 | AD88: 1
A89: 83 | AC89: 0 | AD89: 1
A90: 84 | AC90: 0 | AD90: 1
A91: 85 | AC91: 0 | AD91: 1
A92: 86 | AC92: 0 | AD92: 1
A93: 87 | AC93: 0 | AD93: 1
A94: 88 | AC94: 0 | AD94: 1
A95: 89 | AC95: 0 | AD95: 1
A96: 90 | AC96: 0 | AD96: 1
A97: 91 | AC97: 0 | AD97: 1
A98: 92 | AC98: 0 | AD98: 1
A99: 93 | AC99: 0 | AD99: 1
A100: 94 | AC100: 0 | AD100: 1
A101: 95 | AC101: 0 | AD101: 1
A102: 96 | AC102: 0 | AD102: 1
A103: 97 | AC103: 0 | AD103: 1
A104: 98 | AC104: 0 | AD104: 1

Sheet Grade 3
N1: First SEMESTER | AA1: Students Number | AC1: =COUNT(B7:B97) -> 0
A3: 0 | B3: 1 | C3: 2 | D3: 3 | E3: 4 | F3: 5 | G3: 6 | H3: 7 | I3: 8 | J3: 9 | K3: 10 | L3: 11 | M3: 12 | N3: 13 | O3: 14 | P3: 15 | Q3: 16 | R3: 17 | S3: 18 | T3: 19 | U3: 20 | V3: 21 | W3: 22 | X3: 23 | Y3: 24 | Z3: 25 | AA3: 26 | AB3: 27 | AC3: 28 | AD3: 29
F4: Arabic | O4: English | AD4: Rank
F5: قراءة | G5: تعبير شفهي | H5: إصغاء | I5: إستظهار | J5: إملاء | K5: قواعد | L5: تحليل نص | M5: تعبير كتابي | N5: خط ونسخ | O5: Reading | P5: Oral Com | Q5: Listening | R5: Poem | S5: Dictation | T5: Phonics | U5: Read Com | V5: Writing | W5: Penmanship | X5: Maths | Y5: Siences | Z5: Sports | AA5: Arts | AB5: Skills | AC5: Total Marks
A6: Adm No. | B6: Roll No. | C6: Name | D6: Class | E6: Section | F6: 10 | G6: 10 | H6: 10 | I6: 10 | J6: 10 | K6: 10 | L6: 10 | M6: 10 | N6: 10 | O6: 10 | P6: 10 | Q6: 10 | R6: 10 | S6: 10 | T6: 10 | U6: 10 | V6: 10 | W6: 10 | X6: 60 | Y6: 30 | Z6: 10 | AA6: 10 | AB6: 10 | AC6: =SUM(F6:AB6) -> 300
A7: 1 | AC7: 0 | AD7: =RANK(AC7,$AC$7:$AC$150,0) -> 1 | AV7: YELLOW | AW7: A
A8: 2 | AC8: 0 | AD8: =RANK(AC8,$AC$7:$AC$150,0) -> 1 | AV8: FARMERS | AW8: B
A9: 3 | AC9: 0 | AD9: 1 | AV9: BUS-MABSOUT | AW9: C
A10: 4 | AC10: 0 | AD10: 1 | AV10: BLOOMERS | AW10: D
A11: 5 | AC11: 0 | AD11: 1 | AV11: CACTUS | AW11: E
A12: 6 | AC12: 0 | AD12: 1 | AV12: EDISON | AW12: F
A13: 7 | AC13: 0 | AD13: 1
A14: 8 | AC14: 0 | AD14: 1
A15: 9 | AC15: 0 | AD15: 1
A16: 10 | AC16: 0 | AD16: 1
A17: 11 | AC17: 0 | AD17: 1
A18: 12 | AC18: 0 | AD18: 1
A19: 13 | AC19: 0 | AD19: 1
A20: 14 | AC20: 0 | AD20: 1
A21: 15 | AC21: 0 | AD21: 1
A22: 16 | AC22: 0 | AD22: 1
A23: 17 | AC23: 0 | AD23: 1
A24: 18 | AC24: 0 | AD24: 1
A25: 19 | AC25: 0 | AD25: 1
A26: 20 | AC26: 0 | AD26: 1
A27: 21 | AC27: 0 | AD27: 1
A28: 22 | AC28: 0 | AD28: 1
A29: 23 | AC29: 0 | AD29: 1
A30: 24 | AC30: 0 | AD30: 1
A31: 25 | AC31: 0 | AD31: 1
A32: 26 | AC32: 0 | AD32: 1
A33: 27 | AC33: 0 | AD33: 1
A34: 28 | AC34: 0 | AD34: 1
A35: 29 | AC35: 0 | AD35: 1
A36: 30 | AC36: 0 | AD36: 1
A37: 31 | AC37: 0 | AD37: 1
A38: 32 | AC38: 0 | AD38: 1
A39: 33 | AC39: 0 | AD39: 1
A40: 34 | AC40: 0 | AD40: 1
A41: 35 | AC41: 0 | AD41: 1
A42: 36 | AC42: 0 | AD42: 1
A43: 37 | AC43: 0 | AD43: 1
A44: 38 | AC44: 0 | AD44: 1
A45: 39 | AC45: 0 | AD45: 1
A46: 40 | AC46: 0 | AD46: 1
A47: 41 | AC47: 0 | AD47: 1
A48: 42 | AC48: 0 | AD48: 1
A49: 43 | AC49: 0 | AD49: 1
A50: 44 | AC50: 0 | AD50: 1
A51: 45 | AC51: 0 | AD51: 1
A52: 46 | AC52: 0 | AD52: 1
A53: 47 | AC53: 0 | AD53: 1
A54: 48 | AC54: 0 | AD54: 1
A55: 49 | AC55: 0 | AD55: 1
A56: 50 | AC56: 0 | AD56: 1
A57: 51 | AC57: 0 | AD57: 1
A58: 52 | AC58: 0 | AD58: 1
A59: 53 | AC59: 0 | AD59: 1
A60: 54 | AC60: 0 | AD60: 1
A61: 55 | AC61: 0 | AD61: 1
A62: 56 | AC62: 0 | AD62: 1
A63: 57 | AC63: 0 | AD63: 1
A64: 58 | AC64: 0 | AD64: 1
A65: 59 | AC65: 0 | AD65: 1
A66: 60 | AC66: 0 | AD66: 1
A67: 61 | AC67: 0 | AD67: 1
A68: 62 | AC68: 0 | AD68: 1
A69: 63 | AC69: 0 | AD69: 1
A70: 64 | AC70: =SUM(F70:AB70) -> 0 | AD70: 1
A71: 65 | AC71: 0 | AD71: 1
A72: 66 | AC72: 0 | AD72: =RANK(AC72,$AC$7:$AC$150,0) -> 1
A73: 67 | AC73: 0 | AD73: 1
A74: 68 | AC74: 0 | AD74: 1
A75: 69 | AC75: 0 | AD75: 1
A76: 70 | AC76: 0 | AD76: 1
A77: 71 | AC77: 0 | AD77: 1
A78: 72 | AC78: 0 | AD78: 1
A79: 73 | AC79: 0 | AD79: 1
A80: 74 | AC80: 0 | AD80: 1
A81: 75 | AC81: 0 | AD81: 1
A82: 76 | AC82: 0 | AD82: 1
A83: 77 | AC83: 0 | AD83: 1
A84: 78 | AC84: 0 | AD84: 1
A85: 79 | AC85: 0 | AD85: 1
A86: 80 | AC86: 0 | AD86: 1
A87: 81 | AC87: 0 | AD87: 1
A88: 82 | AC88: 0 | AD88: 1
A89: 83 | AC89: 0 | AD89: 1
A90: 84 | AC90: 0 | AD90: 1
A91: 85 | AC91: 0 | AD91: 1
A92: 86 | AC92: 0 | AD92: 1
A93: 87 | AC93: 0 | AD93: 1
A94: 88 | AC94: 0 | AD94: 1
A95: 89 | AC95: 0 | AD95: 1
A96: 90 | AC96: 0 | AD96: 1
A97: 91 | AC97: 0 | AD97: 1
A98: 92 | AC98: 0 | AD98: 1
A99: 93 | AC99: 0 | AD99: 1
A100: 94 | AC100: 0 | AD100: 1
A101: 95 | AC101: 0 | AD101: 1
A102: 96 | AC102: 0 | AD102: 1
A103: 97 | AC103: 0 | AD103: 1
A104: 98 | AC104: 0 | AD104: 1

Sheet Grade 4
N1: First SEMESTER | AA1: Students Number | AC1: =COUNT(B7:B97) -> 0
A3: 0 | B3: 1 | C3: 2 | D3: 3 | E3: 4 | F3: 5 | G3: 6 | H3: 7 | I3: 8 | J3: 9 | K3: 10 | L3: 11 | M3: 12 | N3: 13 | O3: 14 | P3: 15 | Q3: 16 | R3: 17 | S3: 18 | T3: 19 | U3: 20 | V3: 21 | W3: 22 | X3: 23 | Y3: 24 | Z3: 25 | AA3: 26 | AB3: 27 | AC3: 28 | AD3: 29
F4: Arabic | O4: English | AD4: Rank
F5: قراءة | G5: تعبير شفهي | H5: إصغاء | I5: إستظهار | J5: إملاء | K5: قواعد | L5: تحليل نص | M5: تعبير كتابي | N5: خط ونسخ | O5: Reading | P5: Oral Com | Q5: Listening | R5: Poem | S5: Dictation | T5: Phonics | U5: Read Com | V5: Writing | W5: Penmanship | X5: Maths | Y5: Siences | Z5: Sports | AA5: Arts | AB5: Skills | AC5: Total Marks
A6: Adm No. | B6: Roll No. | C6: Name | D6: Class | E6: Section | F6: 10 | G6: 10 | H6: 10 | I6: 10 | J6: 10 | K6: 10 | L6: 10 | M6: 10 | N6: 10 | O6: 10 | P6: 10 | Q6: 10 | R6: 10 | S6: 10 | T6: 10 | U6: 10 | V6: 10 | W6: 10 | X6: 60 | Y6: 30 | Z6: 10 | AA6: 10 | AB6: 10 | AC6: =SUM(F6:AB6) -> 300
A7: 1 | AC7: 0 | AD7: =RANK(AC7,$AC$7:$AC$150,0) -> 1 | AV7: YELLOW | AW7: A
A8: 2 | AC8: 0 | AD8: =RANK(AC8,$AC$7:$AC$150,0) -> 1 | AV8: FARMERS | AW8: B
A9: 3 | AC9: 0 | AD9: 1 | AV9: BUS-MABSOUT | AW9: C
A10: 4 | AC10: 0 | AD10: 1 | AV10: BLOOMERS | AW10: D
A11: 5 | AC11: 0 | AD11: 1 | AV11: CACTUS | AW11: E
A12: 6 | AC12: 0 | AD12: 1 | AV12: EDISON | AW12: F
A13: 7 | AC13: 0 | AD13: 1
A14: 8 | AC14: 0 | AD14: 1
A15: 9 | AC15: 0 | AD15: 1
A16: 10 | AC16: 0 | AD16: 1
A17: 11 | AC17: 0 | AD17: 1
A18: 12 | AC18: 0 | AD18: 1
A19: 13 | AC19: 0 | AD19: 1
A20: 14 | AC20: 0 | AD20: 1
A21: 15 | AC21: 0 | AD21: 1
A22: 16 | AC22: 0 | AD22: 1
A23: 17 | AC23: 0 | AD23: 1
A24: 18 | AC24: 0 | AD24: 1
A25: 19 | AC25: 0 | AD25: 1
A26: 20 | AC26: 0 | AD26: 1
A27: 21 | AC27: 0 | AD27: 1
A28: 22 | AC28: 0 | AD28: 1
A29: 23 | AC29: 0 | AD29: 1
A30: 24 | AC30: 0 | AD30: 1
A31: 25 | AC31: 0 | AD31: 1
A32: 26 | AC32: 0 | AD32: 1
A33: 27 | AC33: 0 | AD33: 1
A34: 28 | AC34: 0 | AD34: 1
A35: 29 | AC35: 0 | AD35: 1
A36: 30 | AC36: 0 | AD36: 1
A37: 31 | AC37: 0 | AD37: 1
A38: 32 | AC38: 0 | AD38: 1
A39: 33 | AC39: 0 | AD39: 1
A40: 34 | AC40: 0 | AD40: 1
A41: 35 | AC41: 0 | AD41: 1
A42: 36 | AC42: 0 | AD42: 1
A43: 37 | AC43: 0 | AD43: 1
A44: 38 | AC44: 0 | AD44: 1
A45: 39 | AC45: 0 | AD45: 1
A46: 40 | AC46: 0 | AD46: 1
A47: 41 | AC47: 0 | AD47: 1
A48: 42 | AC48: 0 | AD48: 1
A49: 43 | AC49: 0 | AD49: 1
A50: 44 | AC50: 0 | AD50: 1
A51: 45 | AC51: 0 | AD51: 1
A52: 46 | AC52: 0 | AD52: 1
A53: 47 | AC53: 0 | AD53: 1
A54: 48 | AC54: 0 | AD54: 1
A55: 49 | AC55: 0 | AD55: 1
A56: 50 | AC56: 0 | AD56: 1
A57: 51 | AC57: 0 | AD57: 1
A58: 52 | AC58: 0 | AD58: 1
A59: 53 | AC59: 0 | AD59: 1
A60: 54 | AC60: 0 | AD60: 1
A61: 55 | AC61: 0 | AD61: 1
A62: 56 | AC62: 0 | AD62: 1
A63: 57 | AC63: 0 | AD63: 1
A64: 58 | AC64: 0 | AD64: 1
A65: 59 | AC65: 0 | AD65: 1
A66: 60 | AC66: 0 | AD66: 1
A67: 61 | AC67: 0 | AD67: 1
A68: 62 | AC68: 0 | AD68: 1
A69: 63 | AC69: 0 | AD69: 1
A70: 64 | AC70: =SUM(F70:AB70) -> 0 | AD70: 1
A71: 65 | AC71: 0 | AD71: 1
A72: 66 | AC72: 0 | AD72: =RANK(AC72,$AC$7:$AC$150,0) -> 1
A73: 67 | AC73: 0 | AD73: 1
A74: 68 | AC74: 0 | AD74: 1
A75: 69 | AC75: 0 | AD75: 1
A76: 70 | AC76: 0 | AD76: 1
A77: 71 | AC77: 0 | AD77: 1
A78: 72 | AC78: 0 | AD78: 1
A79: 73 | AC79: 0 | AD79: 1
A80: 74 | AC80: 0 | AD80: 1
A81: 75 | AC81: 0 | AD81: 1
A82: 76 | AC82: 0 | AD82: 1
A83: 77 | AC83: 0 | AD83: 1
A84: 78 | AC84: 0 | AD84: 1
A85: 79 | AC85: 0 | AD85: 1
A86: 80 | AC86: 0 | AD86: 1
A87: 81 | AC87: 0 | AD87: 1
A88: 82 | AC88: 0 | AD88: 1
A89: 83 | AC89: 0 | AD89: 1
A90: 84 | AC90: 0 | AD90: 1
A91: 85 | AC91: 0 | AD91: 1
A92: 86 | AC92: 0 | AD92: 1
A93: 87 | AC93: 0 | AD93: 1
A94: 88 | AC94: 0 | AD94: 1
A95: 89 | AC95: 0 | AD95: 1
A96: 90 | AC96: 0 | AD96: 1
A97: 91 | AC97: 0 | AD97: 1
A98: 92 | AC98: 0 | AD98: 1
A99: 93 | AC99: 0 | AD99: 1
A100: 94 | AC100: 0 | AD100: 1
A101: 95 | AC101: 0 | AD101: 1
A102: 96 | AC102: 0 | AD102: 1
A103: 97 | AC103: 0 | AD103: 1
A104: 98 | AC104: 0 | AD104: 1

Sheet Grade 5
N1: First SEMESTER | AA1: Students Number | AC1: =COUNT(B7:B97) -> 0
A3: 0 | B3: 1 | C3: 2 | D3: 3 | E3: 4 | F3: 5 | G3: 6 | H3: 7 | I3: 8 | J3: 9 | K3: 10 | L3: 11 | M3: 12 | N3: 13 | O3: 14 | P3: 15 | Q3: 16 | R3: 17 | S3: 18 | T3: 19 | U3: 20 | V3: 21 | W3: 22 | X3: 23 | Y3: 24 | Z3: 25 | AA3: 26 | AB3: 27 | AC3: 28 | AD3: 29
F4: Arabic | O4: English | AD4: Rank
F5: قراءة | G5: تعبير شفهي | H5: إصغاء | I5: إستظهار | J5: إملاء | K5: قواعد | L5: تحليل نص | M5: تعبير كتابي | N5: خط ونسخ | O5: Reading | P5: Oral Com | Q5: Listening | R5: Poem | S5: Dictation | T5: Phonics | U5: Read Com | V5: Writing | W5: Penmanship | X5: Maths | Y5: Siences | Z5: Sports | AA5: Arts | AB5: Skills | AC5: Total Marks
A6: Adm No. | B6: Roll No. | C6: Name | D6: Class | E6: Section | F6: 10 | G6: 10 | H6: 10 | I6: 10 | J6: 10 | K6: 10 | L6: 10 | M6: 10 | N6: 10 | O6: 10 | P6: 10 | Q6: 10 | R6: 10 | S6: 10 | T6: 10 | U6: 10 | V6: 10 | W6: 10 | X6: 60 | Y6: 30 | Z6: 10 | AA6: 10 | AB6: 10 | AC6: =SUM(F6:AB6) -> 300
A7: 1 | AC7: 0 | AD7: =RANK(AC7,$AC$7:$AC$150,0) -> 1 | AV7: YELLOW | AW7: A
A8: 2 | AC8: 0 | AD8: =RANK(AC8,$AC$7:$AC$150,0) -> 1 | AV8: FARMERS | AW8: B
A9: 3 | AC9: 0 | AD9: 1 | AV9: BUS-MABSOUT | AW9: C
A10: 4 | AC10: 0 | AD10: 1 | AV10: BLOOMERS | AW10: D
A11: 5 | AC11: 0 | AD11: 1 | AV11: CACTUS | AW11: E
A12: 6 | AC12: 0 | AD12: 1 | AV12: EDISON | AW12: F
A13: 7 | AC13: 0 | AD13: 1
A14: 8 | AC14: 0 | AD14: 1
A15: 9 | AC15: 0 | AD15: 1
A16: 10 | AC16: 0 | AD16: 1
A17: 11 | AC17: 0 | AD17: 1
A18: 12 | AC18: 0 | AD18: 1
A19: 13 | AC19: 0 | AD19: 1
A20: 14 | AC20: 0 | AD20: 1
A21: 15 | AC21: 0 | AD21: 1
A22: 16 | AC22: 0 | AD22: 1
A23: 17 | AC23: 0 | AD23: 1
A24: 18 | AC24: 0 | AD24: 1
A25: 19 | AC25: 0 | AD25: 1
A26: 20 | AC26: 0 | AD26: 1
A27: 21 | AC27: 0 | AD27: 1
A28: 22 | AC28: 0 | AD28: 1
A29: 23 | AC29: 0 | AD29: 1
A30: 24 | AC30: 0 | AD30: 1
A31: 25 | AC31: 0 | AD31: 1
A32: 26 | AC32: 0 | AD32: 1
A33: 27 | AC33: 0 | AD33: 1
A34: 28 | AC34: 0 | AD34: 1
A35: 29 | AC35: 0 | AD35: 1
A36: 30 | AC36: 0 | AD36: 1
A37: 31 | AC37: 0 | AD37: 1
A38: 32 | AC38: 0 | AD38: 1
A39: 33 | AC39: 0 | AD39: 1
A40: 34 | AC40: 0 | AD40: 1
A41: 35 | AC41: 0 | AD41: 1
A42: 36 | AC42: 0 | AD42: 1
A43: 37 | AC43: 0 | AD43: 1
A44: 38 | AC44: 0 | AD44: 1
A45: 39 | AC45: 0 | AD45: 1
A46: 40 | AC46: 0 | AD46: 1
A47: 41 | AC47: 0 | AD47: 1
A48: 42 | AC48: 0 | AD48: 1
A49: 43 | AC49: 0 | AD49: 1
A50: 44 | AC50: 0 | AD50: 1
A51: 45 | AC51: 0 | AD51: 1
A52: 46 | AC52: 0 | AD52: 1
A53: 47 | AC53: 0 | AD53: 1
A54: 48 | AC54: 0 | AD54: 1
A55: 49 | AC55: 0 | AD55: 1
A56: 50 | AC56: 0 | AD56: 1
A57: 51 | AC57: 0 | AD57: 1
A58: 52 | AC58: 0 | AD58: 1
A59: 53 | AC59: 0 | AD59: 1
A60: 54 | AC60: 0 | AD60: 1
A61: 55 | AC61: 0 | AD61: 1
A62: 56 | AC62: 0 | AD62: 1
A63: 57 | AC63: 0 | AD63: 1
A64: 58 | AC64: 0 | AD64: 1
A65: 59 | AC65: 0 | AD65: 1
A66: 60 | AC66: 0 | AD66: 1
A67: 61 | AC67: 0 | AD67: 1
A68: 62 | AC68: 0 | AD68: 1
A69: 63 | AC69: 0 | AD69: 1
A70: 64 | AC70: =SUM(F70:AB70) -> 0 | AD70: 1
A71: 65 | AC71: 0 | AD71: 1
A72: 66 | AC72: 0 | AD72: =RANK(AC72,$AC$7:$AC$150,0) -> 1
A73: 67 | AC73: 0 | AD73: 1
A74: 68 | AC74: 0 | AD74: 1
A75: 69 | AC75: 0 | AD75: 1
A76: 70 | AC76: 0 | AD76: 1
A77: 71 | AC77: 0 | AD77: 1
A78: 72 | AC78: 0 | AD78: 1
A79: 73 | AC79: 0 | AD79: 1
A80: 74 | AC80: 0 | AD80: 1
A81: 75 | AC81: 0 | AD81: 1
A82: 76 | AC82: 0 | AD82: 1
A83: 77 | AC83: 0 | AD83: 1
A84: 78 | AC84: 0 | AD84: 1
A85: 79 | AC85: 0 | AD85: 1
A86: 80 | AC86: 0 | AD86: 1
A87: 81 | AC87: 0 | AD87: 1
A88: 82 | AC88: 0 | AD88: 1
A89: 83 | AC89: 0 | AD89: 1
A90: 84 | AC90: 0 | AD90: 1
A91: 85 | AC91: 0 | AD91: 1
A92: 86 | AC92: 0 | AD92: 1
A93: 87 | AC93: 0 | AD93: 1
A94: 88 | AC94: 0 | AD94: 1
A95: 89 | AC95: 0 | AD95: 1
A96: 90 | AC96: 0 | AD96: 1
A97: 91 | AC97: 0 | AD97: 1
A98: 92 | AC98: 0 | AD98: 1
A99: 93 | AC99: 0 | AD99: 1
A100: 94 | AC100: 0 | AD100: 1
A101: 95 | AC101: 0 | AD101: 1
A102: 96 | AC102: 0 | AD102: 1
A103: 97 | AC103: 0 | AD103: 1
A104: 98 | AC104: 0 | AD104: 1

Sheet Grade 6
N1: First SEMESTER | AA1: Students Number | AC1: =COUNT(B7:B97) -> 0
A3: 0 | B3: 1 | C3: 2 | D3: 3 | E3: 4 | F3: 5 | G3: 6 | H3: 7 | I3: 8 | J3: 9 | K3: 10 | L3: 11 | M3: 12 | N3: 13 | O3: 14 | P3: 15 | Q3: 16 | R3: 17 | S3: 18 | T3: 19 | U3: 20 | V3: 21 | W3: 22 | X3: 23 | Y3: 24 | Z3: 25 | AA3: 26 | AB3: 27 | AC3: 28 | AD3: 29
F4: Arabic | O4: English | AD4: Rank
F5: قراءة | G5: تعبير شفهي | H5: إصغاء | I5: إستظهار | J5: إملاء | K5: قواعد | L5: تحليل نص | M5: تعبير كتابي | N5: خط ونسخ | O5: Reading | P5: Oral Com | Q5: Listening | R5: Poem | S5: Dictation | T5: Phonics | U5: Read Com | V5: Writing | W5: Penmanship | X5: Maths | Y5: Siences | Z5: Sports | AA5: Arts | AB5: Skills | AC5: Total Marks
A6: Adm No. | B6: Roll No. | C6: Name | D6: Class | E6: Section | F6: 10 | G6: 10 | H6: 10 | I6: 10 | J6: 10 | K6: 10 | L6: 10 | M6: 10 | N6: 10 | O6: 10 | P6: 10 | Q6: 10 | R6: 10 | S6: 10 | T6: 10 | U6: 10 | V6: 10 | W6: 10 | X6: 60 | Y6: 30 | Z6: 10 | AA6: 10 | AB6: 10 | AC6: =SUM(F6:AB6) -> 300
A7: 1 | AC7: 0 | AD7: =RANK(AC7,$AC$7:$AC$150,0) -> 1 | AV7: YELLOW | AW7: A
A8: 2 | AC8: 0 | AD8: =RANK(AC8,$AC$7:$AC$150,0) -> 1 | AV8: FARMERS | AW8: B
A9: 3 | AC9: 0 | AD9: 1 | AV9: BUS-MABSOUT | AW9: C
A10: 4 | AC10: 0 | AD10: 1 | AV10: BLOOMERS | AW10: D
A11: 5 | AC11: 0 | AD11: 1 | AV11: CACTUS | AW11: E
A12: 6 | AC12: 0 | AD12: 1 | AV12: EDISON | AW12: F
A13: 7 | AC13: 0 | AD13: 1
A14: 8 | AC14: 0 | AD14: 1
A15: 9 | AC15: 0 | AD15: 1
A16: 10 | AC16: 0 | AD16: 1
A17: 11 | AC17: 0 | AD17: 1
A18: 12 | AC18: 0 | AD18: 1
A19: 13 | AC19: 0 | AD19: 1
A20: 14 | AC20: 0 | AD20: 1
A21: 15 | AC21: 0 | AD21: 1
A22: 16 | AC22: 0 | AD22: 1
A23: 17 | AC23: 0 | AD23: 1
A24: 18 | AC24: 0 | AD24: 1
A25: 19 | AC25: 0 | AD25: 1
A26: 20 | AC26: 0 | AD26: 1
A27: 21 | AC27: 0 | AD27: 1
A28: 22 | AC28: 0 | AD28: 1
A29: 23 | AC29: 0 | AD29: 1
A30: 24 | AC30: 0 | AD30: 1
A31: 25 | AC31: 0 | AD31: 1
A32: 26 | AC32: 0 | AD32: 1
A33: 27 | AC33: 0 | AD33: 1
A34: 28 | AC34: 0 | AD34: 1
A35: 29 | AC35: 0 | AD35: 1
A36: 30 | AC36: 0 | AD36: 1
A37: 31 | AC37: 0 | AD37: 1
A38: 32 | AC38: 0 | AD38: 1
A39: 33 | AC39: 0 | AD39: 1
A40: 34 | AC40: 0 | AD40: 1
A41: 35 | AC41: 0 | AD41: 1
A42: 36 | AC42: 0 | AD42: 1
A43: 37 | AC43: 0 | AD43: 1
A44: 38 | AC44: 0 | AD44: 1
A45: 39 | AC45: 0 | AD45: 1
A46: 40 | AC46: 0 | AD46: 1
A47: 41 | AC47: 0 | AD47: 1
A48: 42 | AC48: 0 | AD48: 1
A49: 43 | AC49: 0 | AD49: 1
A50: 44 | AC50: 0 | AD50: 1
A51: 45 | AC51: 0 | AD51: 1
A52: 46 | AC52: 0 | AD52: 1
A53: 47 | AC53: 0 | AD53: 1
A54: 48 | AC54: 0 | AD54: 1
A55: 49 | AC55: 0 | AD55: 1
A56: 50 | AC56: 0 | AD56: 1
A57: 51 | AC57: 0 | AD57: 1
A58: 52 | AC58: 0 | AD58: 1
A59: 53 | AC59: 0 | AD59: 1
A60: 54 | AC60: 0 | AD60: 1
A61: 55 | AC61: 0 | AD61: 1
A62: 56 | AC62: 0 | AD62: 1
A63: 57 | AC63: 0 | AD63: 1
A64: 58 | AC64: 0 | AD64: 1
A65: 59 | AC65: 0 | AD65: 1
A66: 60 | AC66: 0 | AD66: 1
A67: 61 | AC67: 0 | AD67: 1
A68: 62 | AC68: 0 | AD68: 1
A69: 63 | AC69: 0 | AD69: 1
A70: 64 | AC70: =SUM(F70:AB70) -> 0 | AD70: 1
A71: 65 | AC71: 0 | AD71: 1
A72: 66 | AC72: 0 | AD72: =RANK(AC72,$AC$7:$AC$150,0) -> 1
A73: 67 | AC73: 0 | AD73: 1
A74: 68 | AC74: 0 | AD74: 1
A75: 69 | AC75: 0 | AD75: 1
A76: 70 | AC76: 0 | AD76: 1
A77: 71 | AC77: 0 | AD77: 1
A78: 72 | AC78: 0 | AD78: 1
A79: 73 | AC79: 0 | AD79: 1
A80: 74 | AC80: 0 | AD80: 1
A81: 75 | AC81: 0 | AD81: 1
A82: 76 | AC82: 0 | AD82: 1
A83: 77 | AC83: 0 | AD83: 1
A84: 78 | AC84: 0 | AD84: 1
A85: 79 | AC85: 0 | AD85: 1
A86: 80 | AC86: 0 | AD86: 1
A87: 81 | AC87: 0 | AD87: 1
A88: 82 | AC88: 0 | AD88: 1
A89: 83 | AC89: 0 | AD89: 1
A90: 84 | AC90: 0 | AD90: 1
A91: 85 | AC91: 0 | AD91: 1
A92: 86 | AC92: 0 | AD92: 1
A93: 87 | AC93: 0 | AD93: 1
A94: 88 | AC94: 0 | AD94: 1
A95: 89 | AC95: 0 | AD95: 1
A96: 90 | AC96: 0 | AD96: 1
A97: 91 | AC97: 0 | AD97: 1
A98: 92 | AC98: 0 | AD98: 1
A99: 93 | AC99: 0 | AD99: 1
A100: 94 | AC100: 0 | AD100: 1
A101: 95 | AC101: 0 | AD101: 1
A102: 96 | AC102: 0 | AD102: 1
A103: 97 | AC103: 0 | AD103: 1
A104: 98 | AC104: 0 | AD104: 1

Sheet Certificates
I5: هل استطيع تحديد بأمر أو كود طباعة كل الشهادات التي تحوي على اسم الصف المطلوب ؟ | R5: 1
A6: GRATE REPPORT | F6: DATE : | G6: 2021-11-11
A8: NAME | C8: =VLOOKUP(F8,Marks!$B$3:$AI$22,2,0) -> Omar Ahmad Zein | F8: 220 | G8: ID No. | I8: هل هناك كود ترحيل البيانات كل صف الى شيت مختلف ؟ | R8: 2
A9: Class | C9: =VLOOKUP(F8,Marks!$B$3:$AI$22,3,0) -> Grade 1 | F9: =Marks!$A$1 -> 2020-2021 | G9: Year
A10: Section | C10: =VLOOKUP(F8,[1]Marks!$B$3:$AI$22,4,0) -> A | F10: =Marks!$N$1 -> First | G10: Semester | I10: اعمل على تنسيق اليوزرفورم أيضا هل هناك كود للطباعة بنفس الشروط ولكن من اليوزر فورم ؟ | R10: 3
A12: Subjets | B12: Maximum Mark | C12: Chapter Mark | D12: Remarks | F12: Absence
A13: =[1]Marks!$F$5 -> قراءة | B13: =Marks!$F$6 -> 10 | C13: =VLOOKUP(F8,Marks!$B$3:$AI$22,5,0) -> 8
A14: =[1]Marks!$G$5 -> تعبير شفهي | B14: =Marks!$G$6 -> 10 | C14: =VLOOKUP(F8,Marks!$B$3:$AI$22,6,0) -> 2
A15: =[1]Marks!$H$5 -> إصغاء | B15: =Marks!$H$6 -> 10 | C15: =VLOOKUP(F8, Marks!$B$3:$AI$22,7,0) -> 3
A16: =[1]Marks!$I$5 -> إستظهار | B16: =Marks!$I$6 -> 10 | C16: =VLOOKUP(F8, Marks!$B$3:$AI$22,8,0) -> 8
A17: =[1]Marks!$J$5 -> إملاء | B17: =Marks!$J$6 -> 10 | C17: =VLOOKUP(F8, Marks!$B$3:$AI$22,9,0) -> 2
A18: =[1]Marks!$K$5 -> قواعد | B18: =Marks!$K$6 -> 10 | C18: =VLOOKUP(F8, Marks!$B$3:$AI$22,10,0) -> 3 | F18: Average
A19: =[1]Marks!$L$5 -> تحليل نص | B19: =Marks!$L$6 -> 10 | C19: =VLOOKUP(F8, Marks!$B$3:$AI$22,11,0) -> 4 | J19: شكراً لك أخي الكريم وبارك الله فيك.
A20: =[1]Marks!$M$5 -> تعبير كتابي | B20: =Marks!$M$6 -> 10 | C20: =VLOOKUP(F8, Marks!$B$3:$AI$22,12,0) -> 2
A21: =[1]Marks!$N$5 -> خط ونسخ | B21: =Marks!$N$6 -> 10 | C21: =VLOOKUP(F8, Marks!$B$3:$AI$22,13,0) -> 8 | F21: =SUM(B44/2) -> 210
A22: =[1]Marks!$O$5 -> تربية مدنية | B22: =Marks!$O$6 -> 20 | C22: =VLOOKUP(F8, Marks!$B$3:$AI$22,14,0) -> 18
A23: =[1]Marks!$P$5 -> جغرافيا | B23: =Marks!$P$6 -> 20 | C23: =VLOOKUP(F8, Marks!$B$3:$AI$22,15,0) -> 15 | J23: الصفحة الرئيسية هي Sheet Marks
A24: =[1]Marks!$Q$5 -> تاريخ | B24: =Marks!$Q$6 -> 20 | C24: =VLOOKUP(F8, Marks!$B$3:$AI$22,16,0) -> 18 | F24: Total Marks
A25: =[1]Marks!$R$5 -> Reading | B25: =Marks!$R$6 -> 10 | C25: =VLOOKUP(F8, Marks!$B$3:$AI$22,17,0) -> 2
A26: =[1]Marks!$S$5 -> Oral Com | B26: =Marks!$S$6 -> 10 | C26: =VLOOKUP(F8, Marks!$B$3:$AI$22,18,0) -> 2 | F26: =VLOOKUP(F8,Marks!$B$7:AI8,33,0) -> 243
A27: =[1]Marks!$T$5 -> Listening | B27: =Marks!$T$6 -> 10 | C27: =VLOOKUP(F8, Marks!$B$3:$AI$22,19,0) -> 2
A28: =[1]Marks!$U$5 -> Poem | B28: =Marks!$U$6 -> 10 | C28: =VLOOKUP(F8, Marks!$B$3:$AI$22,20,0) -> 4
A29: =[1]Marks!$V$5 -> Dictation | B29: =Marks!$W$6 -> 10 | C29: =VLOOKUP(F8, Marks!$B$3:$AI$22,21,0) -> 2
A30: =[1]Marks!$W$5 -> Grammar | B30: =Marks!$X$6 -> 10 | C30: =VLOOKUP(F8, Marks!$B$3:$AI$22,22,0) -> 4 | F30: Rank
A31: =[1]Marks!$X$5 -> Read Com | B31: =Marks!$Y$6 -> 10 | C31: =VLOOKUP(F8, Marks!$B$3:$AI$22,23,0) -> 4
A32: =[1]Marks!$Y$5 -> Writing | B32: =Marks!$Z$6 -> 10 | C32: =VLOOKUP(F8, Marks!$B$3:$AI$22,24,0) -> 6
A33: =[1]Marks!$Z$5 -> Penmanship | B33: =Marks!$AA$6 -> 60 | C33: =VLOOKUP(F8, Marks!$B$3:$AI$22,25,0) -> 9 | F33: =VLOOKUP(F8,Marks!$B$3:$AI$22,34,0) -> 7
A34: =[1]Marks!$AA$5 -> Maths | B34: =Marks!$AB$6 -> 30 | C34: =VLOOKUP(F8, Marks!$B$3:$AI$22,26,0) -> 38
A35: =[1]Marks!$AB$5 -> Biology | B35: =Marks!$AC$6 -> 30 | C35: =VLOOKUP(F8, Marks!$B$3:$AI$22,27,0) -> 18
A36: =[1]Marks!$AC$5 -> Chemistry | B36: =Marks!$AD$6 -> 30 | C36: =VLOOKUP(F8, Marks!$B$3:$AI$22,28,0) -> 18
A37: =[1]Marks!$AD$5 -> Physics | B37: =Marks!$AE$6 -> 10 | C37: =VLOOKUP(F8, Marks!$B$3:$AI$22,29,0) -> 18 | F37: Result
A38: =[1]Marks!$AE$5 -> Sports | B38: =Marks!$AF$6 -> 10 | C38: =VLOOKUP(F8, Marks!$B$3:$AI$22,30,0) -> 11
A39: =[1]Marks!$AF$5 -> Arts | B39: =Marks!$AG$6 -> 10 | C39: =VLOOKUP(F8, Marks!$B$3:$AI$22,31,0) -> 9
A40: =[1]Marks!$AG$5 -> Skills | B40: =Marks!$AH$6 -> 420 | C40: =VLOOKUP(F8, Marks!$B$3:$AI$22,32,0) -> 5 | F40: =_xlfn.IFS(F26>F21,"ناجح",F26<F21,"راسب",F26=F21,"ناجح") -> ناجح
A44: TOTAL | B44: =Marks!$AH$6 -> 420 | C44: =VLOOKUP(F8,Marks!$B$3:AH8,33,0) -> 243
A46: PRINCIPAL COMMENT | F46: PARENTS SIGNATURE
A54: GRATE REPPORT | F54: DATE : | G54: 2021-11-12
A56: NAME | C56: =VLOOKUP(F56,Marks!$B$3:$AI$22,2,0) -> Ahmad Mohammed Yuness | F56: 221 | G56: ID No.
A57: Class | C57: =VLOOKUP(F56,Marks!$B$3:$AI$22,3,0) -> Grade 2 | F57: =Marks!$A$1 -> 2020-2021 | G57: Year
A58: Section | C58: =VLOOKUP(F56,[1]Marks!$B$3:$AI$22,4,0) -> A | F58: =Marks!$N$1 -> First | G58: Semester
A60: Subjets | B60: Maximum Mark | C60: Chapter Mark | D60: Remarks | F60: Absence
A61: =[1]Marks!$F$5 -> قراءة | B61: =Marks!$F$6 -> 10 | C61: =VLOOKUP(F56,Marks!$B$3:$AI$22,5,0) -> 2
A62: =[1]Marks!$G$5 -> تعبير شفهي | B62: =Marks!$G$6 -> 10 | C62: =VLOOKUP(F56,Marks!$B$3:$AI$22,6,0) -> 3
A63: =[1]Marks!$H$5 -> إصغاء | B63: =Marks!$H$6 -> 10 | C63: =VLOOKUP(F56, Marks!$B$3:$AI$22,7,0) -> 4
A64: =[1]Marks!$I$5 -> إستظهار | B64: =Marks!$I$6 -> 10 | C64: =VLOOKUP(F56, Marks!$B$3:$AI$22,8,0) -> 5
A65: =[1]Marks!$J$5 -> إملاء | B65: =Marks!$J$6 -> 10 | C65: =VLOOKUP(F56, Marks!$B$3:$AI$22,9,0) -> 6
A66: =[1]Marks!$K$5 -> قواعد | B66: =Marks!$K$6 -> 10 | C66: =VLOOKUP(F56, Marks!$B$3:$AI$22,10,0) -> 7 | F66: Average
A67: =[1]Marks!$L$5 -> تحليل نص | B67: =Marks!$L$6 -> 10 | C67: =VLOOKUP(F56, Marks!$B$3:$AI$22,11,0) -> 8
A68: =[1]Marks!$M$5 -> تعبير كتابي | B68: =Marks!$M$6 -> 10 | C68: =VLOOKUP(F56, Marks!$B$3:$AI$22,12,0) -> 9
A69: =[1]Marks!$N$5 -> خط ونسخ | B69: =Marks!$N$6 -> 10 | C69: =VLOOKUP(F56, Marks!$B$3:$AI$22,13,0) -> 10 | F69: =SUM(B92/2) -> 210
A70: =[1]Marks!$O$5 -> تربية مدنية | B70: =Marks!$O$6 -> 20 | C70: =VLOOKUP(F56, Marks!$B$3:$AI$22,14,0) -> 11
A71: =[1]Marks!$P$5 -> جغرافيا | B71: =Marks!$P$6 -> 20 | C71: =VLOOKUP(F56, Marks!$B$3:$AI$22,15,0) -> 12
A72: =[1]Marks!$Q$5 -> تاريخ | B72: =Marks!$Q$6 -> 20 | C72: =VLOOKUP(F56, Marks!$B$3:$AI$22,16,0) -> 13 | F72: Total Marks
A73: =[1]Marks!$R$5 -> Reading | B73: =Marks!$R$6 -> 10 | C73: =VLOOKUP(F56, Marks!$B$3:$AI$22,17,0) -> 14
A74: =[1]Marks!$S$5 -> Oral Com | B74: =Marks!$S$6 -> 10 | C74: =VLOOKUP(F56, Marks!$B$3:$AI$22,18,0) -> 15 | F74: =VLOOKUP(F56,Marks!$B$7:AI56,33,0) -> 434
A75: =[1]Marks!$T$5 -> Listening | B75: =Marks!$T$6 -> 10 | C75: =VLOOKUP(F56, Marks!$B$3:$AI$22,19,0) -> 16
A76: =[1]Marks!$U$5 -> Poem | B76: =Marks!$U$6 -> 10 | C76: =VLOOKUP(F56, Marks!$B$3:$AI$22,20,0) -> 17
A77: =[1]Marks!$V$5 -> Dictation | B77: =Marks!$W$6 -> 10 | C77: =VLOOKUP(F56, Marks!$B$3:$AI$22,21,0) -> 18
A78: =[1]Marks!$W$5 -> Grammar | B78: =Marks!$X$6 -> 10 | C78: =VLOOKUP(F56, Marks!$B$3:$AI$22,22,0) -> 19 | F78: Rank
A79: =[1]Marks!$X$5 -> Read Com | B79: =Marks!$Y$6 -> 10 | C79: =VLOOKUP(F56, Marks!$B$3:$AI$22,23,0) -> 20
A80: =[1]Marks!$Y$5 -> Writing | B80: =Marks!$Z$6 -> 10 | C80: =VLOOKUP(F56, Marks!$B$3:$AI$22,24,0) -> 21
A81: =[1]Marks!$Z$5 -> Penmanship | B81: =Marks!$AA$6 -> 60 | C81: =VLOOKUP(F56, Marks!$B$3:$AI$22,25,0) -> 22 | F81: =VLOOKUP(F56,Marks!$B$3:$AI$22,34,0) -> 1
A82: =[1]Marks!$AA$5 -> Maths | B82: =Marks!$AB$6 -> 30 | C82: =VLOOKUP(F56, Marks!$B$3:$AI$22,26,0) -> 23
A83: =[1]Marks!$AB$5 -> Biology | B83: =Marks!$AC$6 -> 30 | C83: =VLOOKUP(F56, Marks!$B$3:$AI$22,27,0) -> 24
A84: =[1]Marks!$AC$5 -> Chemistry | B84: =Marks!$AD$6 -> 30 | C84: =VLOOKUP(F56, Marks!$B$3:$AI$22,28,0) -> 25
A85: =[1]Marks!$AD$5 -> Physics | B85: =Marks!$AE$6 -> 10 | C85: =VLOOKUP(F56, Marks!$B$3:$AI$22,29,0) -> 26 | F85: Result
A86: =[1]Marks!$AE$5 -> Sports | B86: =Marks!$AF$6 -> 10 | C86: =VLOOKUP(F56, Marks!$B$3:$AI$22,30,0) -> 27
A87: =[1]Marks!$AF$5 -> Arts | B87: =Marks!$AG$6 -> 10 | C87: =VLOOKUP(F56, Marks!$B$3:$AI$22,31,0) -> 28
A88: =[1]Marks!$AG$5 -> Skills | B88: =Marks!$AH$6 -> 420 | C88: =VLOOKUP(F56, Marks!$B$3:$AI$22,32,0) -> 29 | F88: =_xlfn.IFS(F74>F69,"ناجح",F74<F69,"راسب",F74=F69,"ناجح") -> ناجح
A92: TOTAL | B92: =Marks!$AH$6 -> 420 | C92: =VLOOKUP(F56,Marks!$B$3:AH56,33,0) -> 434
A94: PRINCIPAL COMMENT | F94: PARENTS SIGNATURE
A102: GRATE REPPORT | F102: DATE : | G102: 2021-11-13
A104: NAME | C104: =VLOOKUP(F104,Marks!$B$3:$AI$22,2,0) -> Zouheir hasan Wazni | F104: 222 | G104: ID No.
A105: Class | C105: =VLOOKUP(F104,Marks!$B$3:$AI$22,3,0) -> Grade 3 | F105: =Marks!$A$1 -> 2020-2021 | G105: Year
A106: Section | C106: =VLOOKUP(F104,[1]Marks!$B$3:$AI$22,4,0) -> B | F106: =Marks!$N$1 -> First | G106: Semester
A108: Subjets | B108: Maximum Mark | C108: Chapter Mark | D108: Remarks | F108: Absence
A109: =[1]Marks!$F$5 -> قراءة | B109: =Marks!$F$6 -> 10 | C109: =VLOOKUP(F104,Marks!$B$3:$AI$22,5,0) -> 2
A110: =[1]Marks!$G$5 -> تعبير شفهي | B110: =Marks!$G$6 -> 10 | C110: =VLOOKUP(F104,Marks!$B$3:$AI$22,6,0) -> 2
A111: =[1]Marks!$H$5 -> إصغاء | B111: =Marks!$H$6 -> 10 | C111: =VLOOKUP(F104, Marks!$B$3:$AI$22,7,0) -> 2
A112: =[1]Marks!$I$5 -> إستظهار | B112: =Marks!$I$6 -> 10 | C112: =VLOOKUP(F104, Marks!$B$3:$AI$22,8,0) -> 5
A113: =[1]Marks!$J$5 -> إملاء | B113: =Marks!$J$6 -> 10 | C113: =VLOOKUP(F104, Marks!$B$3:$AI$22,9,0) -> 3
A114: =[1]Marks!$K$5 -> قواعد | B114: =Marks!$K$6 -> 10 | C114: =VLOOKUP(F104, Marks!$B$3:$AI$22,10,0) -> 4 | F114: Average
A115: =[1]Marks!$L$5 -> تحليل نص | B115: =Marks!$L$6 -> 10 | C115: =VLOOKUP(F104, Marks!$B$3:$AI$22,11,0) -> 4
A116: =[1]Marks!$M$5 -> تعبير كتابي | B116: =Marks!$M$6 -> 10 | C116: =VLOOKUP(F104, Marks!$B$3:$AI$22,12,0) -> 2
A117: =[1]Marks!$N$5 -> خط ونسخ | B117: =Marks!$N$6 -> 10 | C117: =VLOOKUP(F104, Marks!$B$3:$AI$22,13,0) -> 9 | F117: =SUM(B140/2) -> 210
A118: =[1]Marks!$O$5 -> تربية مدنية | B118: =Marks!$O$6 -> 20 | C118: =VLOOKUP(F104, Marks!$B$3:$AI$22,14,0) -> 18
A119: =[1]Marks!$P$5 -> جغرافيا | B119: =Marks!$P$6 -> 20 | C119: =VLOOKUP(F104, Marks!$B$3:$AI$22,15,0) -> 15
A120: =[1]Marks!$Q$5 -> تاريخ | B120: =Marks!$Q$6 -> 20 | C120: =VLOOKUP(F104, Marks!$B$3:$AI$22,16,0) -> 15 | F120: Total Marks
A121: =[1]Marks!$R$5 -> Reading | B121: =Marks!$R$6 -> 10 | C121: =VLOOKUP(F104, Marks!$B$3:$AI$22,17,0) -> 2
A122: =[1]Marks!$S$5 -> Oral Com | B122: =Marks!$S$6 -> 10 | C122: =VLOOKUP(F104, Marks!$B$3:$AI$22,18,0) -> 2 | F122: =VLOOKUP(F104,Marks!$B$7:AI104,33,0) -> 246
A123: =[1]Marks!$T$5 -> Listening | B123: =Marks!$T$6 -> 10 | C123: =VLOOKUP(F104, Marks!$B$3:$AI$22,19,0) -> 2
A124: =[1]Marks!$U$5 -> Poem | B124: =Marks!$U$6 -> 10 | C124: =VLOOKUP(F104, Marks!$B$3:$AI$22,20,0) -> 5
A125: =[1]Marks!$V$5 -> Dictation | B125: =Marks!$W$6 -> 10 | C125: =VLOOKUP(F104, Marks!$B$3:$AI$22,21,0) -> 2
A126: =[1]Marks!$W$5 -> Grammar | B126: =Marks!$X$6 -> 10 | C126: =VLOOKUP(F104, Marks!$B$3:$AI$22,22,0) -> 5 | F126: Rank
A127: =[1]Marks!$X$5 -> Read Com | B127: =Marks!$Y$6 -> 10 | C127: =VLOOKUP(F104, Marks!$B$3:$AI$22,23,0) -> 5
A128: =[1]Marks!$Y$5 -> Writing | B128: =Marks!$Z$6 -> 10 | C128: =VLOOKUP(F104, Marks!$B$3:$AI$22,24,0) -> 7
A129: =[1]Marks!$Z$5 -> Penmanship | B129: =Marks!$AA$6 -> 60 | C129: =VLOOKUP(F104, Marks!$B$3:$AI$22,25,0) -> 9 | F129: =VLOOKUP(F104,Marks!$B$3:$AI$22,34,0) -> 3
A130: =[1]Marks!$AA$5 -> Maths | B130: =Marks!$AB$6 -> 30 | C130: =VLOOKUP(F104, Marks!$B$3:$AI$22,26,0) -> 35
A131: =[1]Marks!$AB$5 -> Biology | B131: =Marks!$AC$6 -> 30 | C131: =VLOOKUP(F104, Marks!$B$3:$AI$22,27,0) -> 17
A132: =[1]Marks!$AC$5 -> Chemistry | B132: =Marks!$AD$6 -> 30 | C132: =VLOOKUP(F104, Marks!$B$3:$AI$22,28,0) -> 20
A133: =[1]Marks!$AD$5 -> Physics | B133: =Marks!$AE$6 -> 10 | C133: =VLOOKUP(F104, Marks!$B$3:$AI$22,29,0) -> 20 | F133: Result
A134: =[1]Marks!$AE$5 -> Sports | B134: =Marks!$AF$6 -> 10 | C134: =VLOOKUP(F104, Marks!$B$3:$AI$22,30,0) -> 16
A135: =[1]Marks!$AF$5 -> Arts | B135: =Marks!$AG$6 -> 10 | C135: =VLOOKUP(F104, Marks!$B$3:$AI$22,31,0) -> 9
A136: =[1]Marks!$AG$5 -> Skills | B136: =Marks!$AH$6 -> 420 | C136: =VLOOKUP(F104, Marks!$B$3:$AI$22,32,0) -> 9 | F136: =_xlfn.IFS(F122>F117,"ناجح",F122<F117,"راسب",F122=F117,"ناجح") -> ناجح
A140: TOTAL | B140: =Marks!$AH$6 -> 420 | C140: =VLOOKUP(F104,Marks!$B$3:AH104,33,0) -> 246
A142: PRINCIPAL COMMENT | F142: PARENTS SIGNATURE
A150: GRATE REPPORT | F150: DATE : | G150: 2021-11-14
A152: NAME | C152: =VLOOKUP(F152,Marks!$B$3:$AI$22,2,0) -> Sara Ali Ballot | F152: 223 | G152: ID No.
A153: Class | C153: =VLOOKUP(F152,Marks!$B$3:$AI$22,3,0) -> Grade 4 | F153: =Marks!$A$1 -> 2020-2021 | G153: Year
A154: Section | C154: =VLOOKUP(F152,[1]Marks!$B$3:$AI$22,4,0) -> C | F154: =Marks!$N$1 -> First | G154: Semester
A156: Subjets | B156: Maximum Mark | C156: Chapter Mark | D156: Remarks | F156: Absence
A157: =[1]Marks!$F$5 -> قراءة | B157: =Marks!$F$6 -> 10 | C157: =VLOOKUP(F152,Marks!$B$3:$AI$22,5,0) -> 2
A158: =[1]Marks!$G$5 -> تعبير شفهي | B158: =Marks!$G$6 -> 10 | C158: =VLOOKUP(F152,Marks!$B$3:$AI$22,6,0) -> 2
A159: =[1]Marks!$H$5 -> إصغاء | B159: =Marks!$H$6 -> 10 | C159: =VLOOKUP(F152, Marks!$B$3:$AI$22,7,0) -> 2
A160: =[1]Marks!$I$5 -> إستظهار | B160: =Marks!$I$6 -> 10 | C160: =VLOOKUP(F152, Marks!$B$3:$AI$22,8,0) -> 5
A161: =[1]Marks!$J$5 -> إملاء | B161: =Marks!$J$6 -> 10 | C161: =VLOOKUP(F152, Marks!$B$3:$AI$22,9,0) -> 2
A162: =[1]Marks!$K$5 -> قواعد | B162: =Marks!$K$6 -> 10 | C162: =VLOOKUP(F152, Marks!$B$3:$AI$22,10,0) -> 4 | F162: Average
A163: =[1]Marks!$L$5 -> تحليل نص | B163: =Marks!$L$6 -> 10 | C163: =VLOOKUP(F152, Marks!$B$3:$AI$22,11,0) -> 4
A164: =[1]Marks!$M$5 -> تعبير كتابي | B164: =Marks!$M$6 -> 10 | C164: =VLOOKUP(F152, Marks!$B$3:$AI$22,12,0) -> 2
A165: =[1]Marks!$N$5 -> خط ونسخ | B165: =Marks!$N$6 -> 10 | C165: =VLOOKUP(F152, Marks!$B$3:$AI$22,13,0) -> 9 | F165: =SUM(B188/2) -> 210
A166: =[1]Marks!$O$5 -> تربية مدنية | B166: =Marks!$O$6 -> 20 | C166: =VLOOKUP(F152, Marks!$B$3:$AI$22,14,0) -> 15
A167: =[1]Marks!$P$5 -> جغرافيا | B167: =Marks!$P$6 -> 20 | C167: =VLOOKUP(F152, Marks!$B$3:$AI$22,15,0) -> 14
A168: =[1]Marks!$Q$5 -> تاريخ | B168: =Marks!$Q$6 -> 20 | C168: =VLOOKUP(F152, Marks!$B$3:$AI$22,16,0) -> 15 | F168: Total Marks
A169: =[1]Marks!$R$5 -> Reading | B169: =Marks!$R$6 -> 10 | C169: =VLOOKUP(F152, Marks!$B$3:$AI$22,17,0) -> 2
A170: =[1]Marks!$S$5 -> Oral Com | B170: =Marks!$S$6 -> 10 | C170: =VLOOKUP(F152, Marks!$B$3:$AI$22,18,0) -> 2 | F170: =VLOOKUP(F152,Marks!$B$7:AI152,33,0) -> 230
A171: =[1]Marks!$T$5 -> Listening | B171: =Marks!$T$6 -> 10 | C171: =VLOOKUP(F152, Marks!$B$3:$AI$22,19,0) -> 2
A172: =[1]Marks!$U$5 -> Poem | B172: =Marks!$U$6 -> 10 | C172: =VLOOKUP(F152, Marks!$B$3:$AI$22,20,0) -> 5
A173: =[1]Marks!$V$5 -> Dictation | B173: =Marks!$W$6 -> 10 | C173: =VLOOKUP(F152, Marks!$B$3:$AI$22,21,0) -> 2
A174: =[1]Marks!$W$5 -> Grammar | B174: =Marks!$X$6 -> 10 | C174: =VLOOKUP(F152, Marks!$B$3:$AI$22,22,0) -> 4 | F174: Rank
A175: =[1]Marks!$X$5 -> Read Com | B175: =Marks!$Y$6 -> 10 | C175: =VLOOKUP(F152, Marks!$B$3:$AI$22,23,0) -> 4
A176: =[1]Marks!$Y$5 -> Writing | B176: =Marks!$Z$6 -> 10 | C176: =VLOOKUP(F152, Marks!$B$3:$AI$22,24,0) -> 2
A177: =[1]Marks!$Z$5 -> Penmanship | B177: =Marks!$AA$6 -> 60 | C177: =VLOOKUP(F152, Marks!$B$3:$AI$22,25,0) -> 8 | F177: =VLOOKUP(F152,Marks!$B$3:$AI$22,34,0) -> 14
A178: =[1]Marks!$AA$5 -> Maths | B178: =Marks!$AB$6 -> 30 | C178: =VLOOKUP(F152, Marks!$B$3:$AI$22,26,0) -> 36
A179: =[1]Marks!$AB$5 -> Biology | B179: =Marks!$AC$6 -> 30 | C179: =VLOOKUP(F152, Marks!$B$3:$AI$22,27,0) -> 19
A180: =[1]Marks!$AC$5 -> Chemistry | B180: =Marks!$AD$6 -> 30 | C180: =VLOOKUP(F152, Marks!$B$3:$AI$22,28,0) -> 15
A181: =[1]Marks!$AD$5 -> Physics | B181: =Marks!$AE$6 -> 10 | C181: =VLOOKUP(F152, Marks!$B$3:$AI$22,29,0) -> 19 | F181: Result
A182: =[1]Marks!$AE$5 -> Sports | B182: =Marks!$AF$6 -> 10 | C182: =VLOOKUP(F152, Marks!$B$3:$AI$22,30,0) -> 18
A183: =[1]Marks!$AF$5 -> Arts | B183: =Marks!$AG$6 -> 10 | C183: =VLOOKUP(F152, Marks!$B$3:$AI$22,31,0) -> 7
A184: =[1]Marks!$AG$5 -> Skills | B184: =Marks!$AH$6 -> 420 | C184: =VLOOKUP(F152, Marks!$B$3:$AI$22,32,0) -> 9 | F184: =_xlfn.IFS(F170>F165,"ناجح",F170<F165,"راسب",F170=F165,"ناجح") -> ناجح
A188: TOTAL | B188: =Marks!$AH$6 -> 420 | C188: =VLOOKUP(F152,Marks!$B$3:AH152,33,0) -> 230
A190: PRINCIPAL COMMENT | F190: PARENTS SIGNATURE
A198: GRATE REPPORT | F198: DATE : | G198: 2021-11-15
A200: NAME | C200: =VLOOKUP(F200,Marks!$B$3:$AI$22,2,0) -> Saad eddin Syufi | F200: 224 | G200: ID No.
A201: Class | C201: =VLOOKUP(F200,Marks!$B$3:$AI$22,3,0) -> Grade 5 | F201: =Marks!$A$1 -> 2020-2021 | G201: Year
A202: Section | C202: =VLOOKUP(F200,[1]Marks!$B$3:$AI$22,4,0) -> D | F202: =Marks!$N$1 -> First | G202: Semester
A204: Subjets | B204: Maximum Mark | C204: Chapter Mark | D204: Remarks | F204: Absence
A205: =[1]Marks!$F$5 -> قراءة | B205: =Marks!$F$6 -> 10 | C205: =VLOOKUP(F200,Marks!$B$3:$AI$22,5,0) -> 2
A206: =[1]Marks!$G$5 -> تعبير شفهي | B206: =Marks!$G$6 -> 10 | C206: =VLOOKUP(F200,Marks!$B$3:$AI$22,6,0) -> 2
A207: =[1]Marks!$H$5 -> إصغاء | B207: =Marks!$H$6 -> 10 | C207: =VLOOKUP(F200, Marks!$B$3:$AI$22,7,0) -> 2
A208: =[1]Marks!$I$5 -> إستظهار | B208: =Marks!$I$6 -> 10 | C208: =VLOOKUP(F200, Marks!$B$3:$AI$22,8,0) -> 5
A209: =[1]Marks!$J$5 -> إملاء | B209: =Marks!$J$6 -> 10 | C209: =VLOOKUP(F200, Marks!$B$3:$AI$22,9,0) -> 2
A210: =[1]Marks!$K$5 -> قواعد | B210: =Marks!$K$6 -> 10 | C210: =VLOOKUP(F200, Marks!$B$3:$AI$22,10,0) -> 4 | F210: Average
A211: =[1]Marks!$L$5 -> تحليل نص | B211: =Marks!$L$6 -> 10 | C211: =VLOOKUP(F200, Marks!$B$3:$AI$22,11,0) -> 4
A212: =[1]Marks!$M$5 -> تعبير كتابي | B212: =Marks!$M$6 -> 10 | C212: =VLOOKUP(F200, Marks!$B$3:$AI$22,12,0) -> 4
A213: =[1]Marks!$N$5 -> خط ونسخ | B213: =Marks!$N$6 -> 10 | C213: =VLOOKUP(F200, Marks!$B$3:$AI$22,13,0) -> 9 | F213: =SUM(B236/2) -> 210
A214: =[1]Marks!$O$5 -> تربية مدنية | B214: =Marks!$O$6 -> 20 | C214: =VLOOKUP(F200, Marks!$B$3:$AI$22,14,0) -> 15
A215: =[1]Marks!$P$5 -> جغرافيا | B215: =Marks!$P$6 -> 20 | C215: =VLOOKUP(F200, Marks!$B$3:$AI$22,15,0) -> 14
A216: =[1]Marks!$Q$5 -> تاريخ | B216: =Marks!$Q$6 -> 20 | C216: =VLOOKUP(F200, Marks!$B$3:$AI$22,16,0) -> 14 | F216: Total Marks
A217: =[1]Marks!$R$5 -> Reading | B217: =Marks!$R$6 -> 10 | C217: =VLOOKUP(F200, Marks!$B$3:$AI$22,17,0) -> 2
A218: =[1]Marks!$S$5 -> Oral Com | B218: =Marks!$S$6 -> 10 | C218: =VLOOKUP(F200, Marks!$B$3:$AI$22,18,0) -> 4 | F218: =VLOOKUP(F200,Marks!$B$7:AI200,33,0) -> 228
A219: =[1]Marks!$T$5 -> Listening | B219: =Marks!$T$6 -> 10 | C219: =VLOOKUP(F200, Marks!$B$3:$AI$22,19,0) -> 4
A220: =[1]Marks!$U$5 -> Poem | B220: =Marks!$U$6 -> 10 | C220: =VLOOKUP(F200, Marks!$B$3:$AI$22,20,0) -> 5
A221: =[1]Marks!$V$5 -> Dictation | B221: =Marks!$W$6 -> 10 | C221: =VLOOKUP(F200, Marks!$B$3:$AI$22,21,0) -> 2
A222: =[1]Marks!$W$5 -> Grammar | B222: =Marks!$X$6 -> 10 | C222: =VLOOKUP(F200, Marks!$B$3:$AI$22,22,0) -> 4 | F222: Rank
A223: =[1]Marks!$X$5 -> Read Com | B223: =Marks!$Y$6 -> 10 | C223: =VLOOKUP(F200, Marks!$B$3:$AI$22,23,0) -> 4
A224: =[1]Marks!$Y$5 -> Writing | B224: =Marks!$Z$6 -> 10 | C224: =VLOOKUP(F200, Marks!$B$3:$AI$22,24,0) -> 3
A225: =[1]Marks!$Z$5 -> Penmanship | B225: =Marks!$AA$6 -> 60 | C225: =VLOOKUP(F200, Marks!$B$3:$AI$22,25,0) -> 7 | F225: =VLOOKUP(F200,Marks!$B$3:$AI$22,34,0) -> 15
A226: =[1]Marks!$AA$5 -> Maths | B226: =Marks!$AB$6 -> 30 | C226: =VLOOKUP(F200, Marks!$B$3:$AI$22,26,0) -> 30
A227: =[1]Marks!$AB$5 -> Biology | B227: =Marks!$AC$6 -> 30 | C227: =VLOOKUP(F200, Marks!$B$3:$AI$22,27,0) -> 18
A228: =[1]Marks!$AC$5 -> Chemistry | B228: =Marks!$AD$6 -> 30 | C228: =VLOOKUP(F200, Marks!$B$3:$AI$22,28,0) -> 18
A229: =[1]Marks!$AD$5 -> Physics | B229: =Marks!$AE$6 -> 10 | C229: =VLOOKUP(F200, Marks!$B$3:$AI$22,29,0) -> 15 | F229: Result
A230: =[1]Marks!$AE$5 -> Sports | B230: =Marks!$AF$6 -> 10 | C230: =VLOOKUP(F200, Marks!$B$3:$AI$22,30,0) -> 19
A231: =[1]Marks!$AF$5 -> Arts | B231: =Marks!$AG$6 -> 10 | C231: =VLOOKUP(F200, Marks!$B$3:$AI$22,31,0) -> 8
A232: =[1]Marks!$AG$5 -> Skills | B232: =Marks!$AH$6 -> 420 | C232: =VLOOKUP(F200, Marks!$B$3:$AI$22,32,0) -> 8 | F232: =_xlfn.IFS(F218>F213,"ناجح",F218<F213,"راسب",F218=F213,"ناجح") -> ناجح
A236: TOTAL | B236: =Marks!$AH$6 -> 420 | C236: =VLOOKUP(F200,Marks!$B$3:AH200,33,0) -> 228
A238: PRINCIPAL COMMENT | F238: PARENTS SIGNATURE
A246: GRATE REPPORT | F246: DATE : | G246: 2021-11-16
A248: NAME | C248: =VLOOKUP(F248,Marks!$B$3:$AI$22,2,0) -> Ali Mohammed Safar | F248: 225 | G248: ID No.
A249: Class | C249: =VLOOKUP(F248,Marks!$B$3:$AI$22,3,0) -> Grade 8 | F249: =Marks!$A$1 -> 2020-2021 | G249: Year
A250: Section | C250: =VLOOKUP(F248,[1]Marks!$B$3:$AI$22,4,0) -> E | F250: =Marks!$N$1 -> First | G250: Semester
A252: Subjets | B252: Maximum Mark | C252: Chapter Mark | D252: Remarks | F252: Absence
A253: =[1]Marks!$F$5 -> قراءة | B253: =Marks!$F$6 -> 10 | C253: =VLOOKUP(F248,Marks!$B$3:$AI$22,5,0) -> 2
A254: =[1]Marks!$G$5 -> تعبير شفهي | B254: =Marks!$G$6 -> 10 | C254: =VLOOKUP(F248,Marks!$B$3:$AI$22,6,0) -> 2
A255: =[1]Marks!$H$5 -> إصغاء | B255: =Marks!$H$6 -> 10 | C255: =VLOOKUP(F248, Marks!$B$3:$AI$22,7,0) -> 3
A256: =[1]Marks!$I$5 -> إستظهار | B256: =Marks!$I$6 -> 10 | C256: =VLOOKUP(F248, Marks!$B$3:$AI$22,8,0) -> 5
A257: =[1]Marks!$J$5 -> إملاء | B257: =Marks!$J$6 -> 10 | C257: =VLOOKUP(F248, Marks!$B$3:$AI$22,9,0) -> 2
A258: =[1]Marks!$K$5 -> قواعد | B258: =Marks!$K$6 -> 10 | C258: =VLOOKUP(F248, Marks!$B$3:$AI$22,10,0) -> 4 | F258: Average
A259: =[1]Marks!$L$5 -> تحليل نص | B259: =Marks!$L$6 -> 10 | C259: =VLOOKUP(F248, Marks!$B$3:$AI$22,11,0) -> 4
A260: =[1]Marks!$M$5 -> تعبير كتابي | B260: =Marks!$M$6 -> 10 | C260: =VLOOKUP(F248, Marks!$B$3:$AI$22,12,0) -> 4
A261: =[1]Marks!$N$5 -> خط ونسخ | B261: =Marks!$N$6 -> 10 | C261: =VLOOKUP(F248, Marks!$B$3:$AI$22,13,0) -> 8 | F261: =SUM(B284/2) -> 210
A262: =[1]Marks!$O$5 -> تربية مدنية | B262: =Marks!$O$6 -> 20 | C262: =VLOOKUP(F248, Marks!$B$3:$AI$22,14,0) -> 15
A263: =[1]Marks!$P$5 -> جغرافيا | B263: =Marks!$P$6 -> 20 | C263: =VLOOKUP(F248, Marks!$B$3:$AI$22,15,0) -> 18
A264: =[1]Marks!$Q$5 -> تاريخ | B264: =Marks!$Q$6 -> 20 | C264: =VLOOKUP(F248, Marks!$B$3:$AI$22,16,0) -> 16 | F264: Total Marks
A265: =[1]Marks!$R$5 -> Reading | B265: =Marks!$R$6 -> 10 | C265: =VLOOKUP(F248, Marks!$B$3:$AI$22,17,0) -> 2
A266: =[1]Marks!$S$5 -> Oral Com | B266: =Marks!$S$6 -> 10 | C266: =VLOOKUP(F248, Marks!$B$3:$AI$22,18,0) -> 4 | F266: =VLOOKUP(F248,Marks!$B$7:AI248,33,0) -> 237
A267: =[1]Marks!$T$5 -> Listening | B267: =Marks!$T$6 -> 10 | C267: =VLOOKUP(F248, Marks!$B$3:$AI$22,19,0) -> 4
A268: =[1]Marks!$U$5 -> Poem | B268: =Marks!$U$6 -> 10 | C268: =VLOOKUP(F248, Marks!$B$3:$AI$22,20,0) -> 5
A269: =[1]Marks!$V$5 -> Dictation | B269: =Marks!$W$6 -> 10 | C269: =VLOOKUP(F248, Marks!$B$3:$AI$22,21,0) -> 2
A270: =[1]Marks!$W$5 -> Grammar | B270: =Marks!$X$6 -> 10 | C270: =VLOOKUP(F248, Marks!$B$3:$AI$22,22,0) -> 4 | F270: Rank
A271: =[1]Marks!$X$5 -> Read Com | B271: =Marks!$Y$6 -> 10 | C271: =VLOOKUP(F248, Marks!$B$3:$AI$22,23,0) -> 4
... 81 more rows
